Workbook

Sheet V1N
A1: Count 30 mins | C1: =COUNT(F10:F28809) -> 12000 | D1: =COUNT(F10:F14409) -> 12000 | F1: Control | G1: W | H1: H | K1: =SUM(K10:K14409) -> 76010 | N1: 1 | O1: 2 | P1: 3 | T1: 1 | U1: 1 | V1: 1 | W1: =SUMPRODUCT(--($K$10:$K$14409=V1)) -> 1160 | X1: =SUMPRODUCT(--($DF$26:$DF$1411>=$DK1),--($DF$26:$DF$1411<$DK2),$DG$26:$DG$1411) -> 0 | Z1: =W1/8/60 -> 2.416666667 | AF1: Stopped | AG1: Hrs | AH1: Mins | AI1: Secs | AM1: 60mins | AN1: 30 mins | AO1: 20 mins | AP1: 10 mins | AQ1: 1 min | AR1: min | AV1: Zones | AW1: 1 | AX1: 2 | AY1: 3 | AZ1: 4 | BA1: 5 | BB1: 6 | BC1: 7 | BD1: 8 | BE1: 9 | BF1: totals | EH1: =MIN(EH10:EH12009) -> 0.02723735409 | EI1: =MIN(EI10:EI12009) -> 0.04940298507 | EJ1: =MIN(EJ10:EJ12009) -> 0.02459016393 | EK1: ChromLoc | EL1: 0.091
A2: FPS | D2: 8 | G2: 514 | H2: 268 | I2: =G2/(G7) -> 2.038145842 | J2: =H2/(H7) -> 2.103940964 | K2: =SUM(K14410:K28809) -> 0 | N2: 4 | O2: 5 | P2: 6 | T2: 1 | U2: 2 | V2: 2 | W2: =SUMPRODUCT(--($K$10:$K$14409=V2)) -> 262 | Z2: =W2/8/60 -> 0.5458333333 | AB2: =AC3*60*60*1/4/20 -> 0 | AF2: TIME | AG2: =ROUNDDOWN(C1/(D2*60*60),0) -> 0 | AH2: =ROUNDDOWN((C1/(D2*60*60)-AG2)*60,0) -> 25 | AI2: =ROUNDDOWN(C1/D2-AG2*360-AH2*60,0) -> 0 | AM2: ="f"&AM9&":f"&AM10 -> f10:f12009 | AN2: ="f"&AN7&":f"&AN8 -> f10:f12009 | AO2: ="f"&AO7&":f"&AO8 -> f2410:f12009 | AP2: ="f"&AP7&":f"&AP8 -> f7210:f12009 | AQ2: ="f"&AQ7&":f"&AQ8 -> f11530:f12009 | AV2: =SUM(AV3:AV32) -> 203 | AW2: =SUM(AW3:AW32) -> 1160 | AX2: 262 | AY2: 681 | AZ2: 793 | BA2: 280 | BB2: 778 | BC2: 3572 | BD2: 2227 | BE2: 2247 | BF2: =SUM(AW2:BE2) -> 12000 | EH2: =MAX(EH10:EH12009) -> 0.9812840467 | EI2: =MAX(EI10:EI12009) -> 0.9698380597 | EJ2: =MAX(EJ10:EJ12009) -> 0.9865336066 | EK2: 25 mins
A3: Mins | D3: =D1/8/60 -> 25 | I3: 372 | J3: 244 | K3: =K1+K2 -> 76010 | N3: 7 | O3: 8 | P3: 9 | R3: 0 | T3: 1 | U3: 3 | V3: 3 | W3: 681 | Z3: 1.41875 | AB3: -1 | AC3: 0 | AD3: 0 | AM3: ="o"&AM7&":o"&AM8 -> o10:o12009 | AN3: ="o"&AN7&":o"&AN8 -> o10:o12009 | AO3: ="o"&AO7&":o"&AO8 -> o2410:o12009 | AP3: o7210:o12009 | AQ3: o11530:o12009 | AR3: 1 | AS3: 10 | AT3: =AS3+480-1 -> 489 | AU3: ="k"&AS3&":k"&AT3 -> k10:k489 | AV3: =9-SUMPRODUCT(--(AW3:BE3=0)) -> 8 | AW3: =SUMPRODUCT(--(INDIRECT($AU3)=AW$1)) -> 47 | AX3: 22 | AY3: 44 | AZ3: 28 | BA3: 18 | BB3: 23 | BC3: 239 | BD3: 59 | BE3: 0 | BF3: =SUM(AW3:BE3) -> 480 | BM3: =SUM(BM10:BM69) -> 92303 | EH3: =SUM(EH10:EH12009) -> 5298.772422 | EI3: =SUM(EI10:EI12009) -> 3828.176741 | EJ3: =SUM(EJ10:EJ12009) -> 6253.709704 | EP3: =SUM(EP10:EP12005) -> 3 | EQ3: =SUM(EQ10:EQ12005) -> 5 | ER3: =SUM(ER10:ER12005) -> 3 | ET3: =SUM(ET10:ET12005) -> 2.5 | EU3: =SUM(EU10:EU12005) -> 4 | EV3: =SUM(EV10:EV12005) -> 2.5
A4: Check frame count | D4: =D2*D3*60 -> 12000 | F4: =MID(CELL("filename"),FIND("]",CELL("filename"))+1,30)&" "&F1 -> V1N Control | R4: =R6/3 -> 44.66666667 | T4: 2 | U4: 1 | V4: 4 | W4: 793 | Z4: 1.652083333 | AF4: latest | AG4: 60mins | AH4: 30 mins | AI4: 20 mins | AJ4: 10 mins | AK4: 1 min | AM4: ="av"&AM14+2&":av"&AM15+2 -> av3:av27 | AN4: ="av"&AN14+2&":av"&AN15+2 -> av3:av27 | AO4: ="av"&AO14+2&":av"&AO15+2 -> av8:av27 | AP4: ="av"&AP14+2&":av"&AP15+2 -> av18:av27 | AQ4: ="av"&AQ14+2&":av"&AQ15+2 -> av27:av27 | AR4: 2 | AS4: =AT3+1 -> 490 | AT4: =AS4+480-1 -> 969 | AU4: ="k"&AS4&":k"&AT4 -> k490:k969 | AV4: 9 | AW4: 14 | AX4: 7 | AY4: 24 | AZ4: 24 | BA4: 15 | BB4: 31 | BC4: 63 | BD4: 136 | BE4: 166 | BF4: =SUM(AW4:BE4) -> 480 | EP4: r | EQ4: g | ER4: b | ET4: r | EU4: g | EV4: b
A5: Count 1 hour | D5: =COUNT(F14410:F28809) -> 0 | G5: Side | I5: Top | K5: Zone View | O5: =O8+O6 -> 92199.49715 | R5: =R4*2 -> 89.33333333 | T5: 2 | U5: 2 | V5: 5 | W5: 280 | Z5: 0.5833333333 | AE5: Z | AF5: DISTANCE | AG5: =ROUND(SUM(INDIRECT(AM3)),0) -> 92199 | AH5: =ROUND(SUM(INDIRECT(AN3)),0) -> 92199 | AI5: =ROUND(SUM(INDIRECT(AO3)),0) -> 77334 | AJ5: =ROUND(SUM(INDIRECT(AP3)),0) -> 42818 | AK5: =ROUND(SUM(INDIRECT(AQ3)),0) -> 4280 | AQ5: ="av"&AQ14+1&":av"&AQ15+1 -> av26:av26 | AR5: 3 | AS5: =AT4+1 -> 970 | AT5: 1449 | AU5: k970:k1449 | AV5: 8 | AW5: 26 | AX5: 1 | AY5: 0 | AZ5: 31 | BA5: 27 | BB5: 47 | BC5: 82 | BD5: 83 | BE5: 183 | BF5: 480
A6: Total Count | D6: =D1+D5 -> 12000 | G6: x | H6: y | I6: x | J6: y | O6: =SUM(O14410:O28809) -> 0 | R6: =H2/2 -> 134 | T6: 2 | U6: 3 | V6: 6 | W6: 778 | Z6: 1.620833333 | AE6: Y | AF6: UTIL | AG6: =IF(AM25>0,AM24/AM25,0) -> 0.2300521999 | AH6: =IF(AN25>0,AN24/AN25,0) -> 0.2300521999 | AI6: =IF(AO25>0,AO24/AO25,0) -> 0.2321116928 | AJ6: =IF(AP25>0,AP24/AP25,0) -> 0.2033067973 | AK6: =IF(AQ25>0,AQ24/AQ25,0) -> 0.1988472622 | AM6: =AM8-AM7+1 -> 12000 | AN6: =AN8-AN7+1 -> 12000 | AO6: =AO8-AO7+1 -> 9600 | AP6: =AP8-AP7+1 -> 4800 | AQ6: =AQ8-AQ7+1 -> 480 | AR6: 4 | AS6: 1450 | AT6: 1929 | AU6: k1450:k1929 | AV6: 9 | AW6: 34 | AX6: 15 | AY6: 35 | AZ6: 25 | BA6: 22 | BB6: 97 | BC6: 65 | BD6: 38 | BE6: 149 | BF6: 480 | BI6: History
A7: Max | G7: =MAX(G10:G28809) -> 252.19 | H7: =MAX(H10:H28809) -> 127.38 | I7: 182.56 | J7: 119 | K7: =MAX(K10:INDIRECT("k"&$D$6-1)) -> 9 | N7: 0 | O7: =Q7/3 -> 85.66666667 | P7: =O7*2 -> 171.3333333 | Q7: =G2/2 -> 257 | T7: 3 | U7: 1 | V7: 7 | W7: 3572 | Z7: 7.441666667 | AE7: X | AF7: ACTIVITY | AG7: =SUM(INDIRECT(AM4))/AG18 -> 8.12 | AH7: =SUM(INDIRECT(AN4))/AH18 -> 8.12 | AI7: =SUM(INDIRECT(AO4))/AI18 -> 8.3 | AJ7: =SUM(INDIRECT(AP4))/AJ18 -> 8.4 | AK7: =(SUM(INDIRECT(AQ5))*AK16+SUM(INDIRECT(AQ4))*AK17)/60 -> 9 | AM7: =AM9 -> 10 | AN7: =MAX(AN9,AN8-AN11+1) -> 10 | AO7: =MAX(AO9,AO8-AO11+1) -> 2410 | AP7: =MAX(AP9,AP8-AP11+1) -> 7210 | AQ7: =MAX(AQ9,AQ8-AQ11+1) -> 11530 | AR7: 5 | AS7: 1930 | AT7: 2409 | AU7: k1930:k2409 | AV7: 3 | AW7: 0 | AX7: 0 | AY7: 0 | AZ7: 0 | BA7: 0 | BB7: 0 | BC7: 148 | BD7: 196 | BE7: 136 | BF7: 480 | BI7: DISTANCE | BJ7: Z | BN7: UTIL | BO7: Y | BS7: ACTIVITY | BT7: X | CE7: Health Index | CH7: Adj Dist | CL7: Dist. | CM7: DISTANCE | CR7: UTIL | CW7: ACTIVITY | DA7: Act. | EM7: =SUM(EM10:EM20) -> 3828.176741 | EN7: =SUM(EN10:EN20) -> 3828.176741
A8: Min | G8: =MIN(G10:INDIRECT("G"&$D$6-1)) -> 7 | H8: =MIN(H10:INDIRECT("h"&$D$6-1)) -> 4.0417 | I8: =MIN(I10:INDIRECT("i"&$D$6-1)) -> 4 | J8: =MIN(J10:INDIRECT("j"&$D$6-1)) -> 1.6429 | K8: =MIN(K10:INDIRECT("k"&$D$6-1)) -> 1 | O8: =SUM(O11:O12009) -> 92199.49715 | P8: =MAX(O10:O14409) -> 121.9337253 | T8: 3 | U8: 2 | V8: 8 | W8: 2227 | Z8: 4.639583333 | AG8: =INDEX($DY11:$DY17,MATCH(AG9,$DW$11:$DW$17,1)) -> Ok | AH8: =INDEX($DY11:$DY17,MATCH(AH9,$DW$11:$DW$17,1)) -> Ok | AI8: =INDEX($DY11:$DY17,MATCH(AI9,$DW$11:$DW$17,1)) -> Ok | AJ8: =INDEX($DY11:$DY17,MATCH(AJ9,$DW$11:$DW$17,1)) -> Ok | AK8: =INDEX($DY11:$DY17,MATCH(AK9,$DW$11:$DW$17,1)) -> Ok | AM8: =AM10 -> 12009 | AN8: =MAX(AM9,$AM$10) -> 12009 | AO8: =MAX(AN9,$AM$10) -> 12009 | AP8: =MAX(AO9,$AM$10) -> 12009 | AQ8: =MAX(AP9,$AM$10) -> 12009 | AR8: 6 | AS8: 2410 | AT8: 2889 | AU8: k2410:k2889 | AV8: 6 | AW8: 0 | AX8: 0 | AY8: 3 | AZ8: 118 | BA8: 12 | BB8: 5 | BC8: 327 | BD8: 15 | BE8: 0 | BF8: 480 | BI8: 60 mins | BJ8: 30 mins | BK8: 20 mins | BL8: 10 mins | BM8: 1 min | BN8: 60 mins | BO8: 30 mins | BP8: 20 mins | BQ8: 10 mins | BR8: 1 min | BS8: 60 mins | BT8: 30 mins | BU8: 20 mins | BV8: 10 mins | BW8: 1 min | BX8: 60 mins | BY8: 30 mins | BZ8: 20 mins | CA8: 10 mins | CB8: 1 min | CC8: 60 mins | CD8: 30 mins | CE8: 20 mins | CF8: 10 mins | CG8: 1 min | CH8: 60 mins | CI8: 30 mins | CJ8: 20 mins | CK8: 10 mins | CL8: 1 min | CM8: 60 mins | CN8: 30 mins | CO8: 20 mins | CP8: 10 mins | CQ8: 1 min | CR8: 60 mins | CS8: 30 mins | CT8: 20 mins | CU8: 10 mins | CV8: 1 min | CW8: 60 mins | CX8: 30 mins | CY8: 20 mins | CZ8: 10 mins | DA8: 1 min | EY8: v1 | FD8: R3 | FE8: G3 | FF8: B3 | FH8: X | FI8: Y | FJ8: Z | FM8: H | FN8: L | FO8: S
A9: VLC | B9: mins | C9: secs | D9: secs | F9: Query here | H9: =MATCH(H8,H10:H28809,) -> 9479 | I9: =MATCH(I8,I10:I28809,) -> 7206 | L9: H | M9: W | O9: Dist | P9: =SUM(O490:O969) -> 2734.584778 | Q9: 1 | T9: 3 | U9: 3 | V9: 9 | W9: 2247 | X9: =SUM(W1:W9) -> 12000 | Z9: 4.68125 | AA9: =SUM(Z1:Z9) -> 25 | AF9: Health Index | AG9: =INDEX($DP22:$DP25,MATCH(AG14,$DI$22:$DI$25,0))+INDEX($DP11:$DP14,MATCH(AG12,$DI$11:$DI$14,0)) -> 4 | AH9: =INDEX($DP22:$DP25,MATCH(AH14,$DI$22:$DI$25,0))+INDEX($DP11:$DP14,MATCH(AH12,$DI$11:$DI$14,0)) -> 4 | AI9: =INDEX($DP22:$DP25,MATCH(AI14,$DI$22:$DI$25,0))+INDEX($DP11:$DP14,MATCH(AI12,$DI$11:$DI$14,0)) -> 4 | AJ9: =INDEX($DP22:$DP25,MATCH(AJ14,$DI$22:$DI$25,0))+INDEX($DP11:$DP14,MATCH(AJ12,$DI$11:$DI$14,0)) -> 4 | AK9: =INDEX($DP22:$DP25,MATCH(AK14,$DI$22:$DI$25,0))+INDEX($DP11:$DP14,MATCH(AK12,$DI$11:$DI$14,0)) -> 4 | AL9: min | AM9: 10 | AN9: 10 | AO9: 10 | AP9: 10 | AQ9: 10 | AR9: 7 | AS9: 2890 | AT9: 3369 | AU9: k2890:k3369 | AV9: 9 | AW9: 193 | AX9: 13 | AY9: 37 | AZ9: 15 | BA9: 13 | BB9: 5 | BC9: 171 | BD9: 17 | BE9: 16 | BF9: 480 | BI9: =AG5 -> 92199 | BJ9: =AH5 -> 92199 | BK9: =AI5 -> 77334 | BL9: =AJ5 -> 42818 | BM9: =AK5 -> 4280 | BO9: =AH6 -> 0.2300521999 | BP9: =AI6 -> 0.2321116928 | BQ9: =AJ6 -> 0.2033067973 | BR9: =AK6 -> 0.1988472622 | BS9: =AG7 -> 8.12 | BT9: =AH7 -> 8.12 | BU9: =AI7 -> 8.3 | BV9: =AJ7 -> 8.4 | BW9: =AK7 -> 9 | BX9: =AG8 -> Ok | BY9: =AH8 -> Ok | BZ9: =AI8 -> Ok | CA9: =AJ8 -> Ok | CB9: =AK8 -> Ok | CC9: =AG9 -> 4 | CD9: =AH9 -> 4 | CE9: =AI9 -> 4 | CF9: =AJ9 -> 4 | CG9: =AK9 -> 4 | DG9: latest | DJ9: 60 mins | DK9: 30 mins | DL9: 20 mins | DM9: 10 mins | DN9: 1 min | DR9: =COUNT(DR11:DU17) -> 16 | EH9: X' | EI9: Y' | EJ9: Y' | EM9: Y' | EN9: Y''
A10: 1 | B10: =ROUNDDOWN(A10/480,0) -> 0 | C10: =MOD(ROUNDDOWN(A10/8,0),60) -> 0 | D10: =MOD(A10,8)/8 -> 0.125 | F10: 0.21629 | G10: 142.11 | H10: 108.46 | I10: 98.39 | J10: 110.41 | K10: =SUMPRODUCT(--($T$1:$T$9=L10),--($U$1:$U$9=M10),$V$1:$V$9)*SUMPRODUCT(--((G10+H10)>0)) -> 8 | L10: =MATCH(H10,$R$3:$R$6,1) -> 3 | M10: =MATCH(G10,$N$7:$Q$7,1) -> 2 | O10: 0 | S10: =SUM(S11:S51) -> 14400 | AC10: Healthy Fish | AL10: max | AM10: =D6+10-1 -> 12009 | AN10: =IF($AM$10-AN9-AN11<1,$AM$10,$AM$10-AN11) -> 12009 | AO10: =IF($AM$10-AO9-AO11<1,$AM$10,$AM$10-AO11) -> 2409 | AP10: =IF($AM$10-AP9-AP11<1,$AM$10,$AM$10-AP11) -> 7209 | AQ10: =IF($AM$10-AQ9-AQ11<1,$AM$10,$AM$10-AQ11) -> 11529 | AR10: 8 | AS10: 3370 | AT10: 3849 | AU10: k3370:k3849 | AV10: 9 | AW10: 112 | AX10: 12 | AY10: 32 | AZ10: 26 | BA10: 13 | BB10: 71 | BC10: 66 | BD10: 81 | BE10: 67 | BF10: 480 | BH10: 1 | BI10: =SUM(BM$10:$BM10) -> 3451 | BJ10: =SUM($BM$10:BM10) -> 3451 | BK10: =SUM(BM$10:$BM10) -> 3451 | BL10: =SUM($BM$10:BM10) -> 3451 | BM10: =ROUND(SUM(INDIRECT("o"&AS3&":o"&AT3)),0) -> 3451 | BS10: =SUM($BW$10:BW10)/BH10 -> 8 | BT10: =SUM($BW$10:BW10)/BH10 -> 8 | BU10: =SUM($BW$10:BW10)/BH10 -> 8 | BV10: =SUM($BW$10:BW10)/BH10 -> 8 | BW10: =AV3 -> 8 | BX10: =INDEX($DY$11:$DY$17,MATCH(CC10,$DW$11:$DW$17,1)) -> Healthy | BY10: =INDEX($DY$11:$DY$17,MATCH(CD10,$DW$11:$DW$17,1)) -> Healthy | BZ10: =INDEX($DY$11:$DY$17,MATCH(CE10,$DW$11:$DW$17,1)) -> Healthy | CA10: =INDEX($DY$11:$DY$17,MATCH(CF10,$DW$11:$DW$17,1)) -> Healthy | CB10: =INDEX($DY$11:$DY$17,MATCH(CG10,$DW$11:$DW$17,1)) -> Healthy | CC10: =INDEX($DP$22:$DP$25,MATCH(CM10,$DI$22:$DI$25,0))+INDEX($DP$11:$DP$14,MATCH(CW10,$DI$11:$DI$14,0)) -> 6 | CD10: 6 | CE10: =INDEX($DP$22:$DP$25,MATCH(CO10,$DI$22:$DI$25,0))+INDEX($DP$11:$DP$14,MATCH(CY10,$DI$11:$DI$14,0)) -> 6 | CF10: =INDEX($DP$22:$DP$25,MATCH(CP10,$DI$22:$DI$25,0))+INDEX($DP$11:$DP$14,MATCH(CZ10,$DI$11:$DI$14,0)) -> 6 | CG10: =INDEX($DP$22:$DP$25,MATCH(CQ10,$DI$22:$DI$25,0))+INDEX($DP$11:$DP$14,MATCH(DA10,$DI$11:$DI$14,0)) -> 6 | CH10: =BI10/BH10*60 -> 207060 | CI10: =BJ10/BH10*30 -> 103530 | CJ10: =BK10/BH10*20 -> 69020 | CK10: =BL10/BH10*10 -> 34510 | CL10: =BM10 -> 3451 | CM10: =IF(CH10>=$DJ$14,$DI$14,INDEX($DI$10:$DI$13,MATCH(CH10,$DJ$10:$DJ$13,1)+1)) -> normal | CN10: =IF(CI10>=$DK$14,$DI$14,INDEX($DI$10:$DI$13,MATCH(CI10,$DK$10:$DK$13,1)+1)) -> normal | CO10: =IF(CJ10>=$DL$14,$DI$14,INDEX($DI$10:$DI$13,MATCH(CJ10,$DL$10:$DL$13,1)+1)) -> normal | CP10: =IF(CK10>=$DM$14,$DI$14,INDEX($DI$10:$DI$13,MATCH(CK10,$DM$10:$DM$13,1)+1)) -> normal | CQ10: =IF(CL10>=$DN$14,$DI$14,INDEX($DI$10:$DI$13,MATCH(CL10,$DN$10:$DN$13,1)+1)) -> normal | CW10: =IF(BS10>=$DJ$25,$DI$25,INDEX($DI$21:$DI$24,MATCH(BS10,$DJ$21:$DJ$24,1))) -> normal | CX10: =IF(BT10>=$DK$25,$DI$25,INDEX($DI$21:$DI$24,MATCH(BT10,$DK$21:$DK$24,1))) -> normal | CY10: =IF(BU10>=$DL$25,$DI$25,INDEX($DI$21:$DI$24,MATCH(BU10,$DL$21:$DL$24,1))) -> normal | CZ10: =IF(BV10>=$DM$25,$DI$25,INDEX($DI$21:$DI$24,MATCH(BV10,$DM$21:$DM$24,1))) -> normal | DA10: =IF(BW10>=$DN$25,$DI$25,INDEX($DI$21:$DI$24,MATCH(BW10,$DN$21:$DN$24,1))) -> normal | DI10: hypo | DJ10: 0 | DK10: 0 | DL10: 0 | DM10: 0 | DN10: 0 | EH10: =G10/Q$7 -> 0.5529571984 | EI10: =(R$6-H10)/R$6 -> 0.1905970149 | EJ10: =(J$3/2-J10)/(J$3/2) -> 0.095 | EK10: 0 | EL10: =EK10+EL$1 -> 0.091 | EM10: =SUMPRODUCT(--(EH$10:EH$12009<EL10),EI$10:EI$12009) -> 776.8468679 | EN10: =SUMPRODUCT(--(EJ$10:EJ$12009<EL10),EI$10:EI$12009) -> 113.7974104 | EP10: 1 | EQ10: =1-(EP10+ER10) -> 0 | ET10: 1 | EU10: =1-(ET10+EV10) -> 0 | EX10: R1R2 | EY10: =SUMPRODUCT(EP$10:EP$20,EM$10:EM$20)/EP$3+SUMPRODUCT(EP$10:EP$20,EN$10:EN$20)/EP$3 -> 835.7885601 | FC10: 1 | FD10: =SUMPRODUCT($ET$10:$ET$18,$EY$10:$EY$18)/$ET$3 -> 843.8770987 | FE10: =SUMPRODUCT($EU$10:$EU$18,$EY$10:$EY$18)/$EU$3 -> 665.2734157 | FF10: =SUMPRODUCT($EV$10:$EV$18,$EY$10:$EY$18)/$EV$3 -> 711.3359636 | FH10: =FD10/SUM($FD10:$FF10) -> 0.3800415391 | FI10: =FE10/SUM($FD10:$FF10) -> 0.2996070556 | FJ10: =FF10/SUM($FD10:$FF10) -> 0.3203514053 | FK10: =SUM(FH10:FJ10) -> 1 | FM10: =hue(FD10,FE10,FF10) ->  | FN10: =lightness(FD10,FE10,FF10) ->  | FO10: =Saturation(FD10,FE10,FF10) -> 
A11: =A10+1 -> 2 | B11: =ROUNDDOWN(A11/480,0) -> 0 | C11: =MOD(ROUNDDOWN(A11/8,0),60) -> 0 | D11: =MOD(A11,8)/8 -> 0.25 | F11: 0.029556 | G11: 142.11 | H11: 108.46 | I11: 101 | J11: 110.15 | K11: =SUMPRODUCT(--($T$1:$T$9=L11),--($U$1:$U$9=M11),$V$1:$V$9)*SUMPRODUCT(--((G11+H11)>0)) -> 8 | L11: =MATCH(H11,$R$3:$R$6,1) -> 3 | M11: =MATCH(G11,$N$7:$Q$7,1) -> 2 | O11: =SQRT((G11-G10)^2+(H11-H10)^2+(J11-J10)^2) -> 0.26 | P11: 0 | Q11: 1 | R11: =P11+Q11 -> 1 | S11: =SUMPRODUCT(--($O$10:$O$14409>=P11),--($O$10:$O$14409<R11)) -> 3104 | AF11: latest | AG11: 60mins | AH11: 30 mins | AI11: 20 mins | AJ11: 10 mins | AK11: 1 min | AM11: =60*480 -> 28800 | AN11: =30*480 -> 14400 | AO11: =20*480 -> 9600 | AP11: =10*480 -> 4800 | AQ11: =1*480 -> 480 | AR11: 9 | AS11: 3850 | AT11: 4329 | AU11: k3850:k4329 | AV11: 9 | AW11: 1 | AX11: 7 | AY11: 23 | AZ11: 20 | BA11: 9 | BB11: 26 | BC11: 264 | BD11: 64 | BE11: 66 | BF11: 480 | BH11: 2 | BI11: =SUM(BM$10:$BM11) -> 6186 | BJ11: =SUM($BM$10:BM11) -> 6186 | BK11: =SUM(BM$10:$BM11) -> 6186 | BL11: =SUM($BM$10:BM11) -> 6186 | BM11: =ROUND(SUM(INDIRECT("o"&AS4&":o"&AT4)),0) -> 2735 | BS11: =SUM($BW$10:BW11)/BH11 -> 8.5 | BT11: =SUM($BW$10:BW11)/BH11 -> 8.5 | BU11: =SUM($BW$10:BW11)/BH11 -> 8.5 | BV11: =SUM($BW$10:BW11)/BH11 -> 8.5 | BW11: =AV4 -> 9 | BX11: =INDEX($DY$11:$DY$17,MATCH(CC11,$DW$11:$DW$17,1)) -> Ok | BY11: =INDEX($DY$11:$DY$17,MATCH(CD11,$DW$11:$DW$17,1)) -> Ok | BZ11: =INDEX($DY$11:$DY$17,MATCH(CE11,$DW$11:$DW$17,1)) -> Ok | CA11: =INDEX($DY$11:$DY$17,MATCH(CF11,$DW$11:$DW$17,1)) -> Ok | CB11: =INDEX($DY$11:$DY$17,MATCH(CG11,$DW$11:$DW$17,1)) -> Ok | CC11: 4 | CD11: 4 | CE11: 4 | CF11: 4 | CG11: 4 | CH11: =BI11/BH11*60 -> 185580 | CI11: =BJ11/BH11*30 -> 92790 | CJ11: =BK11/BH11*20 -> 61860 | CK11: =BL11/BH11*10 -> 30930 | CL11: =BM11 -> 2735 | CM11: =IF(CH11>=$DJ$14,$DI$14,INDEX($DI$10:$DI$13,MATCH(CH11,$DJ$10:$DJ$13,1)+1)) -> normal | CN11: =IF(CI11>=$DK$14,$DI$14,INDEX($DI$10:$DI$13,MATCH(CI11,$DK$10:$DK$13,1)+1)) -> normal | CO11: =IF(CJ11>=$DL$14,$DI$14,INDEX($DI$10:$DI$13,MATCH(CJ11,$DL$10:$DL$13,1)+1)) -> normal | CP11: =IF(CK11>=$DM$14,$DI$14,INDEX($DI$10:$DI$13,MATCH(CK11,$DM$10:$DM$13,1)+1)) -> normal | CQ11: =IF(CL11>=$DN$14,$DI$14,INDEX($DI$10:$DI$13,MATCH(CL11,$DN$10:$DN$13,1)+1)) -> normal | CW11: =IF(BS11>=$DJ$25,$DI$25,INDEX($DI$21:$DI$24,MATCH(BS11,$DJ$21:$DJ$24,1))) -> hyper | CX11: =IF(BT11>=$DK$25,$DI$25,INDEX($DI$21:$DI$24,MATCH(BT11,$DK$21:$DK$24,1))) -> hyper | CY11: =IF(BU11>=$DL$25,$DI$25,INDEX($DI$21:$DI$24,MATCH(BU11,$DL$21:$DL$24,1))) -> hyper | CZ11: =IF(BV11>=$DM$25,$DI$25,INDEX($DI$21:$DI$24,MATCH(BV11,$DM$21:$DM$24,1))) -> hyper | DA11: hyper | DF11: Z | DG11: DISTANCE | DH11: < | DI11: hypo | DJ11: =Inf!F8 -> 100000 | DK11: =Inf!G8 -> 50000 | DL11: =Inf!H8 -> 33333.33333 | DM11: =Inf!I8 -> 16666.66667 | DN11: =Inf!J8 -> 1666.666667 | DP11: 0 | DR11: =$DP$11+DP22 -> 0 | DW11: 0 | DX11: 1 | DY11: Abnormal | EH11: =G11/Q$7 -> 0.5529571984 | EI11: =(R$6-H11)/R$6 -> 0.1905970149 | EJ11: =(J$3/2-J11)/(J$3/2) -> 0.09713114754 | EK11: =EL10 -> 0.091 | EL11: 0.182 | EM11: =SUMPRODUCT(--(EH$10:EH$12009>=EK11),--(EH$10:EH$12009<EL11),EI$10:EI$12009) -> 649.0142358 | EN11: =SUMPRODUCT(--(EJ$10:EJ$12009>=EK11),--(EJ$10:EJ$12009<EL11),EI$10:EI$12009) -> 442.0888851 | EP11: =EP10-1/((11-1)/2) -> 0.8 | EQ11: =1-(EP11+ER11) -> 0.2 | ET11: =ET10-1/((9-1)/2) -> 0.75 | EU11: =1-(ET11+EV11) -> 0.25 | EX11: R1G2 | EY11: =SUMPRODUCT(EP$10:EP$20,EM$10:EM$20)/EP$3+SUMPRODUCT(EQ$10:EQ$20,EN$10:EN$20)/EQ$3 -> 859.639744
A12: 3 | B12: 0 | C12: 0 | D12: 0.375 | F12: 0.042747 | G12: 150.25 | H12: 111.28 | I12: 109.5 | J12: 108 | K12: 8 | L12: 3 | M12: 2 | O12: 8.878879434 | P12: =R11 -> 1 | Q12: =Q11+$Q$9 -> 2 | R12: =P12+Q12 -> 3 | S12: 1049 | AE12: Z | AF12: DISTANCE | AG12: =IF(AG19>=DJ14,$DI14,INDEX($DI10:$DI13,MATCH(AG19,DJ10:DJ13,1)+1)) -> normal | AH12: =IF(AH19>=DK14,$DI14,INDEX($DI10:$DI13,MATCH(AH19,DK10:DK13,1)+1)) -> normal | AI12: =IF(AI19>=DL14,$DI14,INDEX($DI10:$DI13,MATCH(AI19,DL10:DL13,1)+1)) -> normal | AJ12: =IF(AJ19>=DM14,$DI14,INDEX($DI10:$DI13,MATCH(AJ19,DM10:DM13,1)+1)) -> normal | AK12: =IF(AK5>=DN14,$DI14,INDEX($DI10:$DI13,MATCH(AK5,DN10:DN13,1)+1)) -> normal | AR12: 10 | AS12: 4330 | AT12: 4809 | AU12: k4330:k4809 | AV12: 9 | AW12: 109 | AX12: 3 | AY12: 72 | AZ12: 22 | BA12: 11 | BB12: 36 | BC12: 126 | BD12: 19 | BE12: 82 | BF12: 480 | BH12: 3 | BI12: =SUM(BM$10:$BM12) -> 9272 | BJ12: =SUM($BM$10:BM12) -> 9272 | BK12: =SUM(BM$10:$BM12) -> 9272 | BL12: =SUM($BM$10:BM12) -> 9272 | BM12: 3086 | BS12: =SUM($BW$10:BW12)/BH12 -> 8.333333333 | BT12: =SUM($BW$10:BW12)/BH12 -> 8.333333333 | BU12: =SUM($BW$10:BW12)/BH12 -> 8.333333333 | BV12: =SUM($BW$10:BW12)/BH12 -> 8.333333333 | BW12: 8 | BX12: Ok | BY12: Ok | BZ12: Ok | CA12: Ok | CB12: Healthy | CC12: 4 | CD12: 4 | CE12: 4 | CF12: 4 | CG12: 6 | CH12: 185440 | CI12: 92720 | CJ12: 61813.33333 | CK12: 30906.66667 | CL12: 3086 | CM12: normal | CN12: normal | CO12: normal | CP12: normal | CQ12: normal | CW12: hyper | CX12: hyper | CY12: hyper | CZ12: hyper | DA12: normal | DH12: < | DI12: low | DJ12: =Inf!F9 -> 160000 | DK12: =Inf!G9 -> 80000 | DL12: =Inf!H9 -> 53333.33333 | DM12: =Inf!I9 -> 26666.66667 | DN12: =Inf!J9 -> 2666.666667 | DP12: 1.5 | DR12: =$DP$11+DP23 -> 1.5 | DS12: =$DP$12+DP22 -> 1.5 | DW12: 1 | DX12: 2 | DY12: Abnormal | EH12: 0.5846303502 | EI12: 0.1695522388 | EJ12: 0.1147540984 | EK12: =EL11 -> 0.182 | EL12: 0.273 | EM12: 338.8643843 | EN12: 388.9142955 | EP12: =EP11-1/((11-1)/2) -> 0.6 | EQ12: 0.4 | ET12: =ET11-1/((9-1)/2) -> 0.5 | EU12: 0.5 | EX12: R1B2 | EY12: =SUMPRODUCT(EP$10:EP$20,EM$10:EM$20)/EP$3+SUMPRODUCT(ER$10:ER$20,EN$10:EN$20)/ER$3 -> 993.4675585
A13: 4 | B13: 0 | C13: 0 | D13: 0.5 | F13: 0.046873 | G13: 159.12 | H13: 112.24 | I13: 114.57 | J13: 106.43 | K13: 8 | L13: 3 | M13: 2 | O13: 9.058885141 | P13: 3 | Q13: =Q12+$Q$9 -> 3 | R13: 6 | S13: 3494 | AE13: Y | AF13: UTIL | AM13: 60 | AN13: 30 | AO13: 20 | AP13: 10 | AQ13: 1 | AR13: 11 | AS13: 4810 | AT13: 5289 | AU13: k4810:k5289 | AV13: 7 | AW13: =SUMPRODUCT(--(INDIRECT($AU13)=AW$1)) -> 109 | AX13: 16 | AY13: 21 | AZ13: 192 | BA13: 4 | BB13: 0 | BC13: 130 | BD13: 8 | BE13: 0 | BF13: 480 | BH13: 4 | BI13: =SUM(BM$10:$BM13) -> 12445 | BJ13: =SUM($BM$10:BM13) -> 12445 | BK13: =SUM(BM$10:$BM13) -> 12445 | BL13: =SUM($BM$10:BM13) -> 12445 | BM13: 3173 | BS13: =SUM($BW$10:BW13)/BH13 -> 8.5 | BT13: =SUM($BW$10:BW13)/BH13 -> 8.5 | BU13: =SUM($BW$10:BW13)/BH13 -> 8.5 | BV13: =SUM($BW$10:BW13)/BH13 -> 8.5 | BW13: 9 | BX13: Ok | BY13: Ok | BZ13: Ok | CA13: Ok | CB13: Ok | CC13: 4 | CD13: 4 | CE13: 4 | CF13: 4 | CG13: 4 | CH13: 186675 | CI13: 93337.5 | CJ13: 62225 | CK13: 31112.5 | CL13: 3173 | CM13: normal | CN13: normal | CO13: normal | CP13: normal | CQ13: normal | CW13: hyper | CX13: hyper | CY13: hyper | CZ13: hyper | DA13: hyper | DH13: < | DI13: normal | DJ13: =Inf!F10 -> 390000 | DK13: =Inf!G10 -> 195000 | DL13: =Inf!H10 -> 130000 | DM13: =Inf!I10 -> 65000 | DN13: =Inf!J10 -> 6500 | DP13: 3 | DR13: =$DP$11+DP24 -> 3 | DS13: =$DP$12+DP23 -> 3 | DT13: =$DP$13+DP22 -> 3 | DW13: 2 | DX13: 3 | DY13: Unhealthy | EH13: 0.6191439689 | EI13: 0.1623880597 | EJ13: 0.1276229508 | EK13: 0.273 | EL13: 0.364 | EM13: 221.8226231 | EN13: 308.4352149 | EP13: 0.4 | EQ13: 0.6 | ET13: 0.25 | EU13: 0.75 | EX13: G1R2 | EY13: =SUMPRODUCT(EQ$10:EQ$20,EM$10:EM$20)/EQ$3+SUMPRODUCT(EP$10:EP$20,EN$10:EN$20)/EP$3 -> 529.7623978
A14: 5 | B14: 0 | C14: 0 | D14: 0.625 | F14: 0.040701 | G14: 159.12 | H14: 112.24 | I14: 118 | J14: 103.27 | K14: 8 | L14: 3 | M14: 2 | O14: 3.16 | P14: 6 | Q14: 4 | R14: 10 | S14: 3948 | AE14: X | AF14: ACTIVITY | AG14: =IF(AG7>=DJ25,$DI25,INDEX($DI21:$DI24,MATCH(AG7,DJ21:DJ24,1))) -> hyper | AH14: =IF(AH7>=DK25,$DI25,INDEX($DI21:$DI24,MATCH(AH7,DK21:DK24,1))) -> hyper | AI14: =IF(AI7>=DL25,$DI25,INDEX($DI21:$DI24,MATCH(AI7,DL21:DL24,1))) -> hyper | AJ14: =IF(AJ7>=DM25,$DI25,INDEX($DI21:$DI24,MATCH(AJ7,DM21:DM24,1))) -> hyper | AK14: =IF(AK7>=DN25,$DI25,INDEX($DI21:$DI24,MATCH(AK7,DN21:DN24,1))) -> hyper | AL14: start | AM14: =IF(AM15<AM13,1,AM15-AM13+1) -> 1 | AN14: =IF(AN15<AN13,1,AN15-AN13+1) -> 1 | AO14: =IF(AO15<AO13,1,AO15-AO13+1) -> 6 | AP14: =IF(AP15<AP13,1,AP15-AP13+1) -> 16 | AQ14: =IF(AQ15<AQ13,1,AQ15-AQ13+1) -> 25 | AR14: 12 | AS14: 5290 | AT14: 5769 | AU14: k5290:k5769 | AV14: 9 | AW14: 11 | AX14: 11 | AY14: 28 | AZ14: 2 | BA14: 13 | BB14: 17 | BC14: 124 | BD14: 180 | BE14: 94 | BF14: 480 | BH14: 5 | BI14: =SUM(BM$10:$BM14) -> 14868 | BJ14: =SUM($BM$10:BM14) -> 14868 | BK14: =SUM(BM$10:$BM14) -> 14868 | BL14: =SUM($BM$10:BM14) -> 14868 | BM14: 2423 | BS14: =SUM($BW$10:BW14)/BH14 -> 7.4 | BT14: =SUM($BW$10:BW14)/BH14 -> 7.4 | BU14: =SUM($BW$10:BW14)/BH14 -> 7.4 | BV14: =SUM($BW$10:BW14)/BH14 -> 7.4 | BW14: 3 | BX14: Healthy | BY14: Healthy | BZ14: Healthy | CA14: Healthy | CB14: Unhealthy | CC14: 6 | CD14: 6 | CE14: 6 | CF14: 6 | CG14: 3 | CH14: 178416 | CI14: 89208 | CJ14: 59472 | CK14: 29736 | CL14: 2423 | CM14: normal | CN14: normal | CO14: normal | CP14: normal | CQ14: low | CW14: normal | CX14: normal | CY14: normal | CZ14: normal | DA14: low | DH14: >= | DI14: hyper | DJ14: =Inf!F11 -> 390002 | DK14: =Inf!G11 -> 195001 | DL14: =Inf!H11 -> 130001 | DM14: =Inf!I11 -> 65001 | DN14: =Inf!J11 -> 6500.1 | DP14: 1 | DR14: =$DP$11+DP25 -> 1 | DS14: =$DP$12+DP24 -> 4.5 | DT14: =$DP$13+DP23 -> 4.5 | DU14: =$DP$14+DP22 -> 1 | DW14: 3 | DX14: 4 | DY14: Unhealthy | EH14: 0.6191439689 | EI14: 0.1623880597 | EJ14: 0.1535245902 | EK14: 0.364 | EL14: 0.455 | EM14: 183.7298657 | EN14: 291.6129448 | EP14: 0.2 | EQ14: 0.8 | ET14: 0 | EU14: 1 | EV14: 0 | EX14: G1G2 | EY14: =SUMPRODUCT(EQ$10:EQ$20,EM$10:EM$20)/EQ$3+SUMPRODUCT(EQ$10:EQ$20,EN$10:EN$20)/EQ$3 -> 553.6135817
A15: 6 | B15: 0 | C15: 0 | D15: 0.75 | F15: 0.044199 | G15: 168.21 | H15: 110.42 | I15: 114.85 | J15: 100.15 | K15: 8 | L15: 3 | M15: 2 | O15: 9.781354712 | P15: 10 | Q15: 5 | R15: 15 | S15: 1842 | AL15: end | AM15: =ROUNDUP(AH2+AI2/60,0) -> 25 | AN15: =AM15 -> 25 | AO15: =AN15 -> 25 | AP15: =AO15 -> 25 | AQ15: =AP15 -> 25 | AR15: 13 | AS15: 5770 | AT15: 6249 | AU15: k5770:k6249 | AV15: 8 | AW15: 0 | AX15: 4 | AY15: 12 | AZ15: 12 | BA15: 1 | BB15: 6 | BC15: 139 | BD15: 117 | BE15: 189 | BF15: 480 | BH15: 6 | BI15: =SUM(BM$10:$BM15) -> 18270 | BJ15: =SUM($BM$10:BM15) -> 18270 | BK15: =SUM(BM$10:$BM15) -> 18270 | BL15: =SUM($BM$10:BM15) -> 18270 | BM15: 3402 | BS15: =SUM($BW$10:BW15)/BH15 -> 7.166666667 | BT15: =SUM($BW$10:BW15)/BH15 -> 7.166666667 | BU15: =SUM($BW$10:BW15)/BH15 -> 7.166666667 | BV15: =SUM($BW$10:BW15)/BH15 -> 7.166666667 | BW15: 6 | BX15: Healthy | BY15: Healthy | BZ15: Healthy | CA15: Healthy | CB15: Healthy | CC15: 6 | CD15: 6 | CE15: 6 | CF15: 6 | CG15: 6 | CH15: 182700 | CI15: 91350 | CJ15: 60900 | CK15: 30450 | CL15: 3402 | CM15: normal | CN15: normal | CO15: normal | CP15: normal | CQ15: normal | CW15: normal | CX15: normal | CY15: normal | CZ15: normal | DA15: normal | DS15: =$DP$12+DP25 -> 2.5 | DT15: =$DP$13+DP24 -> 6 | DU15: =$DP$14+DP23 -> 2.5 | DW15: 4 | DX15: 3 | DY15: Ok | EH15: 0.6545136187 | EI15: 0.1759701493 | EJ15: 0.1790983607 | EK15: 0.455 | EL15: 0.546 | EM15: 163.2713731 | EN15: 267.355303 | EP15: 0 | EQ15: 1 | ER15: 0 | EU15: 0.75 | EV15: =EV14+1/((9-1)/2) -> 0.25 | EX15: G1B2 | EY15: =SUMPRODUCT(EQ$10:EQ$20,EM$10:EM$20)/EQ$3+SUMPRODUCT(ER$10:ER$20,EN$10:EN$20)/ER$3 -> 687.4413962
A16: 7 | B16: 0 | C16: 0 | D16: 0.875 | F16: 0.047535 | G16: 168.21 | H16: 110.42 | I16: 114.85 | J16: 100.15 | K16: 8 | L16: 3 | M16: 2 | O16: 0 | P16: 15 | Q16: 6 | R16: 21 | S16: 626 | AK16: =AI2 -> 0 | AL16: min | AM16: 1 | AN16: 1 | AO16: 1 | AP16: 1 | AQ16: 1 | AR16: 14 | AS16: 6250 | AT16: 6729 | AU16: k6250:k6729 | AV16: 7 | AW16: 0 | AX16: 0 | AY16: 48 | AZ16: 16 | BA16: 2 | BB16: 12 | BC16: 184 | BD16: 110 | BE16: 108 | BF16: 480 | BH16: 7 | BI16: =SUM(BM$10:$BM16) -> 21826 | BJ16: =SUM($BM$10:BM16) -> 21826 | BK16: =SUM(BM$10:$BM16) -> 21826 | BL16: =SUM($BM$10:BM16) -> 21826 | BM16: 3556 | BS16: =SUM($BW$10:BW16)/BH16 -> 7.428571429 | BT16: =SUM($BW$10:BW16)/BH16 -> 7.428571429 | BU16: =SUM($BW$10:BW16)/BH16 -> 7.428571429 | BV16: =SUM($BW$10:BW16)/BH16 -> 7.428571429 | BW16: 9 | BX16: Healthy | BY16: Healthy | BZ16: Healthy | CA16: Healthy | CB16: Ok | CC16: 6 | CD16: 6 | CE16: 6 | CF16: 6 | CG16: 4 | CH16: 187080 | CI16: 93540 | CJ16: 62360 | CK16: 31180 | CL16: 3556 | CM16: normal | CN16: normal | CO16: normal | CP16: normal | CQ16: normal | CW16: normal | CX16: normal | CY16: normal | CZ16: normal | DA16: hyper | DF16: Y | DG16: UTIL | DH16: < | DI16: hypo | DT16: =$DP$13+DP25 -> 4 | DU16: =$DP$14+DP24 -> 4 | DW16: 5 | DX16: 2 | DY16: Healthy | EH16: 0.6545136187 | EI16: 0.1759701493 | EJ16: 0.1790983607 | EK16: 0.546 | EL16: 0.637 | EM16: 165.1323664 | EN16: 286.6595448 | EQ16: 0.8 | ER16: =ER15+1/((11-1)/2) -> 0.2 | EU16: 0.5 | EV16: =EV15+1/((9-1)/2) -> 0.5 | EX16: B1R2 | EY16: =SUMPRODUCT(ER$10:ER$20,EM$10:EM$20)/ER$3+SUMPRODUCT(EP$10:EP$20,EN$10:EN$20)/EP$3 -> 635.960966
A17: 8 | B17: 0 | C17: 1 | D17: 0 | F17: 0.040339 | G17: 166.41 | H17: 111.37 | I17: 111.39 | J17: 94.333 | K17: 8 | L17: 3 | M17: 2 | O17: 6.162790683 | P17: 21 | Q17: 7 | R17: 28 | S17: 223 | AK17: =(60-AK16) -> 60 | AL17: max | AM17: =60-60+1 -> 1 | AN17: =60-30+1 -> 31 | AO17: =60-20+1 -> 41 | AP17: =60-10+1 -> 51 | AQ17: 60 | AR17: 15 | AS17: 6730 | AT17: 7209 | AU17: k6730:k7209 | AV17: 9 | AW17: 43 | AX17: 19 | AY17: 25 | AZ17: 5 | BA17: 4 | BB17: 111 | BC17: 12 | BD17: 97 | BE17: 164 | BF17: 480 | BH17: 8 | BI17: =SUM(BM$10:$BM17) -> 25843 | BJ17: =SUM($BM$10:BM17) -> 25843 | BK17: =SUM(BM$10:$BM17) -> 25843 | BL17: =SUM($BM$10:BM17) -> 25843 | BM17: 4017 | BS17: =SUM($BW$10:BW17)/BH17 -> 7.625 | BT17: =SUM($BW$10:BW17)/BH17 -> 7.625 | BU17: =SUM($BW$10:BW17)/BH17 -> 7.625 | BV17: =SUM($BW$10:BW17)/BH17 -> 7.625 | BW17: 9 | BX17: Healthy | BY17: Healthy | BZ17: Healthy | CA17: Healthy | CB17: Ok | CC17: 6 | CD17: 6 | CE17: 6 | CF17: 6 | CG17: 4 | CH17: 193822.5 | CI17: 96911.25 | CJ17: 64607.5 | CK17: 32303.75 | CL17: 4017 | CM17: normal | CN17: normal | CO17: normal | CP17: normal | CQ17: normal | CW17: normal | CX17: normal | CY17: normal | CZ17: normal | DA17: hyper | DH17: < | DI17: low | DU17: =$DP$14+DP25 -> 2 | DW17: 6 | DX17: 1 | DY17: Healthy | EH17: 0.6475097276 | EI17: 0.168880597 | EJ17: 0.2267786885 | EK17: 0.637 | EL17: 0.728 | EM17: 208.4368373 | EN17: 289.847553 | EQ17: 0.6 | ER17: =ER16+1/((11-1)/2) -> 0.4 | EU17: 0.25 | EV17: =EV16+1/((9-1)/2) -> 0.75 | EX17: B1G2 | EY17: =SUMPRODUCT(ER$10:ER$20,EM$10:EM$20)/ER$3+SUMPRODUCT(EQ$10:EQ$20,EN$10:EN$20)/EQ$3 -> 659.81215
A18: 9 | B18: 0 | C18: 1 | D18: 0.125 | F18: 0.046698 | G18: 166.41 | H18: 111.37 | I18: 110.44 | J18: 87.75 | K18: 8 | L18: 3 | M18: 2 | O18: 6.583 | P18: 28 | Q18: 8 | R18: 36 | S18: 59 | AF18: Time | AG18: =IF(AH2>=60,60,MAX((AH2+AI2/60),1)) -> 25 | AH18: =IF(AH2>=30,30,MAX((AH2+AI2/60),1)) -> 25 | AI18: =IF(AH2>20,20,MAX((AH2+AI2/60),1)) -> 20 | AJ18: =IF(AH2>10,10,MAX((AH2+AI2/60),1)) -> 10 | AK18: 1 | AR18: 16 | AS18: 7210 | AT18: 7689 | AU18: k7210:k7689 | AV18: 7 | AW18: 46 | AX18: 0 | AY18: 0 | AZ18: 8 | BA18: 16 | BB18: 6 | BC18: 237 | BD18: 124 | BE18: 43 | BF18: 480 | BH18: 9 | BI18: =SUM(BM$10:$BM18) -> 29067 | BJ18: =SUM($BM$10:BM18) -> 29067 | BK18: =SUM(BM$10:$BM18) -> 29067 | BL18: =SUM($BM$10:BM18) -> 29067 | BM18: 3224 | BS18: =SUM($BW$10:BW18)/BH18 -> 7.777777778 | BT18: =SUM($BW$10:BW18)/BH18 -> 7.777777778 | BU18: =SUM($BW$10:BW18)/BH18 -> 7.777777778 | BV18: =SUM($BW$10:BW18)/BH18 -> 7.777777778 | BW18: 9 | BX18: Healthy | BY18: Healthy | BZ18: Healthy | CA18: Healthy | CB18: Ok | CC18: 6 | CD18: 6 | CE18: 6 | CF18: 6 | CG18: 4 | CH18: 193780 | CI18: 96890 | CJ18: 64593.33333 | CK18: 32296.66667 | CL18: 3224 | CM18: normal | CN18: normal | CO18: normal | CP18: normal | CQ18: normal | CW18: normal | CX18: normal | CY18: normal | CZ18: normal | DA18: hyper | DH18: < | DI18: normal | EH18: 0.6475097276 | EI18: 0.168880597 | EJ18: 0.2807377049 | EK18: 0.728 | EL18: 0.819 | EM18: 268.2310769 | EN18: 379.1010343 | EQ18: 0.4 | ER18: 0.6 | EU18: 0 | EV18: =EV17+1/((9-1)/2) -> 1 | EX18: B1B2 | EY18: =SUMPRODUCT(ER$10:ER$20,EM$10:EM$20)/ER$3+SUMPRODUCT(ER$10:ER$20,EN$10:EN$20)/ER$3 -> 793.6399644
A19: 10 | B19: 0 | C19: 1 | D19: 0.25 | F19: 0.045558 | G19: 159.36 | H19: 111.87 | I19: 105.44 | J19: 87.75 | K19: 8 | L19: 3 | M19: 2 | O19: 7.067708257 | P19: 36 | Q19: 9 | R19: 45 | S19: 21 | AF19: Adj period dist | AG19: =AG5/AG18*60 -> 221277.6 | AH19: =AH5/AH18*30 -> 110638.8 | AI19: =AI5/AI18*20 -> 77334 | AJ19: =AJ5/AJ18*10 -> 42818 | AK19: =AK5/AK18*1 -> 4280 | AM19: ="k"&AM7&":k"&AM8 -> k10:k12009 | AN19: ="k"&AN7&":k"&AN8 -> k10:k12009 | AO19: ="k"&AO7&":k"&AO8 -> k2410:k12009 | AP19: ="k"&AP7&":k"&AP8 -> k7210:k12009 | AQ19: ="k"&AQ7&":k"&AQ8 -> k11530:k12009 | AR19: 17 | AS19: 7690 | AT19: 8169 | AU19: k7690:k8169 | AV19: 9 | AW19: 95 | AX19: 15 | AY19: 34 | AZ19: 26 | BA19: 17 | BB19: 54 | BC19: 15 | BD19: 89 | BE19: 135 | BF19: 480 | BH19: 10 | BI19: =SUM(BM$10:$BM19) -> 32711 | BJ19: =SUM($BM$10:BM19) -> 32711 | BK19: =SUM(BM$10:$BM19) -> 32711 | BL19: =SUM(BM10:BM19) -> 32711 | BM19: 3644 | BS19: =SUM($BW$10:BW19)/BH19 -> 7.9 | BT19: =SUM($BW$10:BW19)/BH19 -> 7.9 | BU19: =SUM($BW$10:BW19)/BH19 -> 7.9 | BV19: =SUM($BW$10:BW19)/BH19 -> 7.9 | BW19: 9 | BX19: Healthy | BY19: Healthy | BZ19: Healthy | CA19: Healthy | CB19: Ok | CC19: 6 | CD19: 6 | CE19: 6 | CF19: 6 | CG19: 4 | CH19: 196266 | CI19: 98133 | CJ19: 65422 | CK19: 32711 | CL19: 3644 | CM19: normal | CN19: normal | CO19: normal | CP19: normal | CQ19: normal | CW19: normal | CX19: normal | CY19: normal | CZ19: normal | DA19: hyper | DH19: >= | DI19: hyper | EH19: 0.620077821 | EI19: 0.1651492537 | EJ19: 0.2807377049 | EK19: 0.819 | EL19: 0.91 | EM19: 523.9891873 | EN19: 527.7267 | EQ19: 0.2 | ER19: 0.8
A20: 11 | B20: 0 | C20: 1 | D20: 0.375 | F20: 0.044669 | G20: 156.56 | H20: 114.85 | I20: 109 | J20: 83.714 | K20: 8 | L20: 3 | M20: 2 | O20: 5.745406513 | P20: 45 | Q20: 10 | R20: 55 | S20: 15 | AF20: Avg. Distance/min | AG20: =AG5/AG18 -> 3687.96 | AH20: =AH5/AH18 -> 3687.96 | AI20: =AI5/AI18 -> 3866.7 | AJ20: =AJ5/AJ18 -> 4281.8 | AK20: =AK5/AK18 -> 4280 | AR20: 18 | AS20: 8170 | AT20: 8649 | AU20: k8170:k8649 | AV20: 9 | AW20: 56 | AX20: 32 | AY20: 78 | AZ20: 30 | BA20: 19 | BB20: 59 | BC20: 120 | BD20: 60 | BE20: 26 | BF20: 480 | BH20: 11 | BI20: =SUM(BM$10:$BM20) -> 36590 | BJ20: =SUM($BM$10:BM20) -> 36590 | BK20: =SUM(BM$10:$BM20) -> 36590 | BL20: 33139 | BM20: 3879 | BS20: =SUM($BW$10:BW20)/BH20 -> 7.818181818 | BT20: =SUM($BW$10:BW20)/BH20 -> 7.818181818 | BU20: =SUM($BW$10:BW20)/BH20 -> 7.818181818 | BV20: =SUM(BW11:BW20)/10 -> 7.8 | BW20: 7 | BX20: Healthy | BY20: Healthy | BZ20: Healthy | CA20: Healthy | CB20: Healthy | CC20: 6 | CD20: 6 | CE20: 6 | CF20: 6 | CG20: 6 | CH20: 199581.8182 | CI20: 99790.90909 | CJ20: 66527.27273 | CK20: =BL20 -> 33139 | CL20: 3879 | CM20: normal | CN20: normal | CO20: normal | CP20: normal | CQ20: normal | CW20: normal | CX20: normal | CY20: normal | CZ20: normal | DA20: normal | EH20: 0.6091828794 | EI20: 0.1429104478 | EJ20: 0.3138196721 | EK20: 0.91 | EL20: 1.001 | EM20: 328.8379231 | EN20: =SUMPRODUCT(--(EJ$6:EJ$12005>=EK20),--(EJ$6:EJ$12005<EL20),EI$6:EI$12005) -> 532.6378552 | EQ20: 0 | ER20: 1
A21: 12 | B21: 0 | C21: 1 | D21: 0.5 | F21: 0.04093 | G21: 156.56 | H21: 114.85 | I21: 108.19 | J21: 79.313 | K21: 8 | L21: 3 | M21: 2 | O21: 4.401 | P21: 55 | Q21: 11 | R21: 66 | S21: 4 | AR21: 19 | AS21: 8650 | AT21: 9129 | AU21: k8650:k9129 | AV21: 9 | AW21: 24 | AX21: 25 | AY21: 55 | AZ21: 115 | BA21: 25 | BB21: 14 | BC21: 184 | BD21: 33 | BE21: 5 | BF21: 480 | BH21: 12 | BI21: =SUM(BM$10:$BM21) -> 39729 | BJ21: =SUM($BM$10:BM21) -> 39729 | BK21: =SUM(BM$10:$BM21) -> 39729 | BL21: 33543 | BM21: 3139 | BS21: =SUM($BW$10:BW21)/BH21 -> 7.916666667 | BT21: =SUM($BW$10:BW21)/BH21 -> 7.916666667 | BU21: =SUM($BW$10:BW21)/BH21 -> 7.916666667 | BV21: =SUM(BW12:BW21)/10 -> 7.8 | BW21: 9 | BX21: Healthy | BY21: Healthy | BZ21: Healthy | CA21: Healthy | CB21: Ok | CC21: 6 | CD21: 6 | CE21: 6 | CF21: 6 | CG21: 4 | CH21: 198645 | CI21: 99322.5 | CJ21: 66215 | CK21: =BL21 -> 33543 | CL21: 3139 | CM21: normal | CN21: normal | CO21: normal | CP21: normal | CQ21: normal | CW21: normal | CX21: normal | CY21: normal | CZ21: normal | DA21: hyper | DI21: hypo | DJ21: 0 | DK21: 0 | DL21: 0 | DM21: 0 | DN21: 0 | EH21: 0.6091828794 | EI21: 0.1429104478 | EJ21: 0.3498934426
A22: 13 | B22: 0 | C22: 1 | D22: 0.625 | F22: 0.044554 | G22: 155.93 | H22: 116.24 | I22: 107.6 | J22: 75.267 | K22: 8 | L22: 3 | M22: 2 | O22: 4.324247449 | P22: 66 | Q22: 12 | R22: 78 | S22: 6 | AF22: Scores | AM22: =SUM(AM23:AM25) -> 12000 | AN22: =SUM(AN23:AN25) -> 12000 | AO22: =SUM(AO23:AO25) -> 9600 | AP22: =SUM(AP23:AP25) -> 4800 | AQ22: =SUM(AQ23:AQ25) -> 480 | AR22: 20 | AS22: 9130 | AT22: 9609 | AU22: k9130:k9609 | AV22: 9 | AW22: 50 | AX22: 13 | AY22: 46 | AZ22: 44 | BA22: 13 | BB22: 7 | BC22: 140 | BD22: 97 | BE22: 70 | BF22: 480 | BH22: 13 | BI22: =SUM(BM$10:$BM22) -> 42581 | BJ22: =SUM($BM$10:BM22) -> 42581 | BK22: =SUM(BM$10:$BM22) -> 42581 | BL22: 33309 | BM22: 2852 | BS22: =SUM($BW$10:BW22)/BH22 -> 7.923076923 | BT22: =SUM($BW$10:BW22)/BH22 -> 7.923076923 | BU22: =SUM($BW$10:BW22)/BH22 -> 7.923076923 | BV22: 7.8 | BW22: 8 | BX22: Healthy | BY22: Healthy | BZ22: Healthy | CA22: Healthy | CB22: Healthy | CC22: 6 | CD22: =INDEX($DP$22:$DP$25,MATCH(CN22,$DI$22:$DI$25,0))+INDEX($DP$11:$DP$14,MATCH(CX22,$DI$11:$DI$14,0)) -> 6 | CE22: =INDEX($DP$22:$DP$25,MATCH(CO22,$DI$22:$DI$25,0))+INDEX($DP$11:$DP$14,MATCH(CY22,$DI$11:$DI$14,0)) -> 6 | CF22: =INDEX($DP$22:$DP$25,MATCH(CP22,$DI$22:$DI$25,0))+INDEX($DP$11:$DP$14,MATCH(CZ22,$DI$11:$DI$14,0)) -> 6 | CG22: =INDEX($DP$22:$DP$25,MATCH(CQ22,$DI$22:$DI$25,0))+INDEX($DP$11:$DP$14,MATCH(DA22,$DI$11:$DI$14,0)) -> 6 | CH22: 196527.6923 | CI22: 98263.84615 | CJ22: 65509.23077 | CK22: 33309 | CL22: 2852 | CM22: normal | CN22: normal | CO22: normal | CP22: normal | CQ22: normal | CW22: normal | CX22: normal | CY22: normal | CZ22: normal | DA22: normal | DF22: X | DG22: ACTIVITY | DH22: < | DI22: hypo | DJ22: =Inf!F18 -> 2 | DK22: =Inf!G18 -> 2 | DL22: =Inf!H18 -> 2 | DM22: =Inf!I18 -> 2 | DN22: =Inf!J18 -> 2 | DP22: 0 | EH22: 0.6067315175 | EI22: 0.1325373134 | EJ22: 0.383057377
A23: 14 | B23: 0 | C23: 1 | D23: 0.75 | F23: 0.050901 | G23: 155.19 | H23: 119.47 | I23: 106.73 | J23: 72.455 | K23: 8 | L23: 3 | M23: 2 | O23: 4.346014726 | P23: 78 | Q23: 13 | R23: 91 | S23: 4 | AF23: DISTANCE | AG23: =IF(AG19>=DJ14,$DP$14,INDEX($DP10:$DP13,MATCH(AG19,DJ10:DJ13,1)+1)) -> 3 | AH23: =IF(AH19>=DK14,$DP$14,INDEX($DP10:$DP13,MATCH(AH19,DK10:DK13,1)+1)) -> 3 | AI23: =IF(AI19>=DL14,$DP$14,INDEX($DP10:$DP13,MATCH(AI19,DL10:DL13,1)+1)) -> 3 | AJ23: =IF(AJ19>=DM14,$DP$14,INDEX($DP10:$DP13,MATCH(AJ19,DM10:DM13,1)+1)) -> 3 | AK23: =IF(AK19>=DN14,$DP$14,INDEX($DP10:$DP13,MATCH(AK19,DN10:DN13,1)+1)) -> 3 | AL23: T | AM23: =SUMPRODUCT(--(INDIRECT(AM$19)=$AL27))+SUMPRODUCT(--(INDIRECT(AM$19)=$AL28))+SUMPRODUCT(--(INDIRECT(AM$19)=$AL29)) -> 2103 | AN23: =SUMPRODUCT(--(INDIRECT(AN$19)=$AL27))+SUMPRODUCT(--(INDIRECT(AN$19)=$AL28))+SUMPRODUCT(--(INDIRECT(AN$19)=$AL29)) -> 2103 | AO23: =SUMPRODUCT(--(INDIRECT(AO$19)=$AL27))+SUMPRODUCT(--(INDIRECT(AO$19)=$AL28))+SUMPRODUCT(--(INDIRECT(AO$19)=$AL29)) -> 1834 | AP23: =SUMPRODUCT(--(INDIRECT(AP$19)=$AL27))+SUMPRODUCT(--(INDIRECT(AP$19)=$AL28))+SUMPRODUCT(--(INDIRECT(AP$19)=$AL29)) -> 870 | AQ23: =SUMPRODUCT(--(INDIRECT(AQ$19)=$AL27))+SUMPRODUCT(--(INDIRECT(AQ$19)=$AL28))+SUMPRODUCT(--(INDIRECT(AQ$19)=$AL29)) -> 64 | AR23: 21 | AS23: 9610 | AT23: 10089 | AU23: k9610:k10089 | AV23: 7 | AW23: =SUMPRODUCT(--(INDIRECT($AU23)=AW$1)) -> 5 | AX23: 6 | AY23: 5 | AZ23: 0 | BA23: 0 | BB23: 2 | BC23: 195 | BD23: 173 | BE23: 94 | BF23: 480 | BH23: 14 | BI23: =SUM(BM$10:$BM23) -> 45652 | BJ23: =SUM($BM$10:BM23) -> 45652 | BK23: =SUM(BM$10:$BM23) -> 45652 | BL23: 33207 | BM23: 3071 | BS23: =SUM($BW$10:BW23)/BH23 -> 7.857142857 | BT23: =SUM($BW$10:BW23)/BH23 -> 7.857142857 | BU23: =SUM($BW$10:BW23)/BH23 -> 7.857142857 | BV23: 7.6 | BW23: 7 | BX23: Healthy | BY23: Healthy | BZ23: Healthy | CA23: Healthy | CB23: Healthy | CC23: 6 | CD23: 6 | CE23: 6 | CF23: 6 | CG23: 6 | CH23: 195651.4286 | CI23: 97825.71429 | CJ23: 65217.14286 | CK23: 33207 | CL23: 3071 | CM23: normal | CN23: normal | CO23: normal | CP23: normal | CQ23: normal | CW23: normal | CX23: normal | CY23: normal | CZ23: normal | DA23: normal | DH23: < | DI23: low | DJ23: =Inf!F19 -> 3 | DK23: =Inf!G19 -> 3 | DL23: =Inf!H19 -> 3 | DM23: =Inf!I19 -> 3 | DN23: =Inf!J19 -> 3 | DP23: 1.5 | EH23: 0.6038521401 | EI23: 0.1084328358 | EJ23: 0.4061065574
A24: 15 | B24: 0 | C24: 1 | D24: 0.875 | F24: 0.036951 | G24: 155.19 | H24: 119.47 | I24: 107.6 | J24: 68.2 | K24: 8 | L24: 3 | M24: 2 | O24: 4.255 | P24: 91 | Q24: 14 | R24: 105 | S24: 2 | AF24: UTIL | AL24: M | AM24: =SUMPRODUCT(--(INDIRECT(AM$19)=$AL30))+SUMPRODUCT(--(INDIRECT(AM$19)=$AL31))+SUMPRODUCT(--(INDIRECT(AM$19)=$AL32)) -> 1851 | AN24: =SUMPRODUCT(--(INDIRECT(AN$19)=$AL30))+SUMPRODUCT(--(INDIRECT(AN$19)=$AL31))+SUMPRODUCT(--(INDIRECT(AN$19)=$AL32)) -> 1851 | AO24: =SUMPRODUCT(--(INDIRECT(AO$19)=$AL30))+SUMPRODUCT(--(INDIRECT(AO$19)=$AL31))+SUMPRODUCT(--(INDIRECT(AO$19)=$AL32)) -> 1463 | AP24: =SUMPRODUCT(--(INDIRECT(AP$19)=$AL30))+SUMPRODUCT(--(INDIRECT(AP$19)=$AL31))+SUMPRODUCT(--(INDIRECT(AP$19)=$AL32)) -> 664 | AQ24: =SUMPRODUCT(--(INDIRECT(AQ$19)=$AL30))+SUMPRODUCT(--(INDIRECT(AQ$19)=$AL31))+SUMPRODUCT(--(INDIRECT(AQ$19)=$AL32)) -> 69 | AR24: 22 | AS24: 10090 | AT24: 10569 | AU24: k10090:k10569 | AV24: 9 | AW24: 65 | AX24: 9 | AY24: 15 | AZ24: 12 | BA24: 6 | BB24: 22 | BC24: 109 | BD24: 134 | BE24: 108 | BF24: 480 | BH24: 15 | BI24: =SUM(BM$10:$BM24) -> 49382 | BJ24: =SUM($BM$10:BM24) -> 49382 | BK24: =SUM(BM$10:$BM24) -> 49382 | BL24: 34514 | BM24: 3730 | BS24: =SUM($BW$10:BW24)/BH24 -> 7.933333333 | BT24: =SUM($BW$10:BW24)/BH24 -> 7.933333333 | BU24: =SUM($BW$10:BW24)/BH24 -> 7.933333333 | BV24: 8.2 | BW24: 9 | BX24: Healthy | BY24: Healthy | BZ24: Healthy | CA24: Ok | CB24: Ok | CC24: 6 | CD24: 6 | CE24: 6 | CF24: 4 | CG24: 4 | CH24: 197528 | CI24: 98764 | CJ24: 65842.66667 | CK24: 34514 | CL24: 3730 | CM24: normal | CN24: normal | CO24: normal | CP24: normal | CQ24: normal | CW24: normal | CX24: normal | CY24: normal | CZ24: hyper | DA24: hyper | DH24: < | DI24: normal | DJ24: =Inf!F20 -> 4 | DK24: =Inf!G20 -> 4 | DL24: =Inf!H20 -> 4 | DM24: =Inf!I20 -> 4 | DN24: =Inf!J20 -> 4 | DP24: 3 | EH24: 0.6038521401 | EI24: 0.1084328358 | EJ24: 0.4409836066
A25: 16 | B25: 0 | C25: 2 | D25: 0 | F25: 0.040005 | G25: 153.45 | H25: 120.88 | I25: 106.35 | J25: 67.9 | K25: 8 | L25: 3 | M25: 2 | O25: 2.259579607 | P25: 105 | Q25: 15 | R25: 120 | S25: 2 | AF25: ACTIVITY | AG25: =INDEX($DP21:$DP24,MATCH(AG7,DJ21:DJ24,1)) -> 3 | AH25: =INDEX($DP21:$DP24,MATCH(AH7,DK21:DK24,1)) -> 3 | AI25: =INDEX($DP21:$DP24,MATCH(AI7,DL21:DL24,1)) -> 3 | AJ25: =INDEX($DP21:$DP24,MATCH(AJ7,DM21:DM24,1)) -> 3 | AK25: =INDEX($DP21:$DP24,MATCH(AK7,DN21:DN24,1)) -> 3 | AL25: B | AM25: =SUMPRODUCT(--(INDIRECT(AM$19)=$AL33))+SUMPRODUCT(--(INDIRECT(AM$19)=$AL34))+SUMPRODUCT(--(INDIRECT(AM$19)=$AL35)) -> 8046 | AN25: =SUMPRODUCT(--(INDIRECT(AN$19)=$AL33))+SUMPRODUCT(--(INDIRECT(AN$19)=$AL34))+SUMPRODUCT(--(INDIRECT(AN$19)=$AL35)) -> 8046 | AO25: =SUMPRODUCT(--(INDIRECT(AO$19)=$AL33))+SUMPRODUCT(--(INDIRECT(AO$19)=$AL34))+SUMPRODUCT(--(INDIRECT(AO$19)=$AL35)) -> 6303 | AP25: =SUMPRODUCT(--(INDIRECT(AP$19)=$AL33))+SUMPRODUCT(--(INDIRECT(AP$19)=$AL34))+SUMPRODUCT(--(INDIRECT(AP$19)=$AL35)) -> 3266 | AQ25: =SUMPRODUCT(--(INDIRECT(AQ$19)=$AL33))+SUMPRODUCT(--(INDIRECT(AQ$19)=$AL34))+SUMPRODUCT(--(INDIRECT(AQ$19)=$AL35)) -> 347 | AR25: 23 | AS25: 10570 | AT25: 11049 | AU25: k10570:k11049 | AV25: 7 | AW25: 17 | AX25: 6 | AY25: 8 | AZ25: 0 | BA25: 0 | BB25: 36 | BC25: 146 | BD25: 98 | BE25: 169 | BF25: 480 | BH25: 16 | BI25: =SUM(BM$10:$BM25) -> 52624 | BJ25: =SUM($BM$10:BM25) -> 52624 | BK25: =SUM(BM$10:$BM25) -> 52624 | BL25: 34354 | BM25: 3242 | BS25: =SUM($BW$10:BW25)/BH25 -> 7.875 | BT25: =SUM($BW$10:BW25)/BH25 -> 7.875 | BU25: =SUM($BW$10:BW25)/BH25 -> 7.875 | BV25: 8.3 | BW25: 7 | BX25: Healthy | BY25: Healthy | BZ25: Healthy | CA25: Ok | CB25: Healthy | CC25: 6 | CD25: 6 | CE25: 6 | CF25: 4 | CG25: 6 | CH25: 197340 | CI25: 98670 | CJ25: 65780 | CK25: 34354 | CL25: 3242 | CM25: normal | CN25: normal | CO25: normal | CP25: normal | CQ25: normal | CW25: normal | CX25: normal | CY25: normal | CZ25: hyper | DA25: normal | DH25: >= | DI25: hyper | DJ25: =Inf!F21 -> 8.01 | DK25: =Inf!G21 -> 8.01 | DL25: =Inf!H21 -> 8.01 | DM25: =Inf!I21 -> 8.01 | DN25: =Inf!J21 -> 8.01 | DP25: 1 | EH25: 0.5970817121 | EI25: 0.09791044776 | EJ25: 0.443442623
A26: 17 | B26: 0 | C26: 2 | D26: 0.125 | F26: 0.043932 | G26: 153.4 | H26: 121.31 | I26: 110.45 | J26: 68.818 | K26: 8 | L26: 3 | M26: 2 | O26: 1.014950245 | P26: 120 | Q26: 16 | R26: 136 | S26: 1 | AR26: 24 | AS26: 11050 | AT26: 11529 | AU26: k11050:k11529 | AV26: 9 | AW26: 67 | AX26: 13 | AY26: 21 | AZ26: 7 | BA26: 10 | BB26: 47 | BC26: 157 | BD26: 97 | BE26: 61 | BF26: 480 | BH26: 17 | BI26: =SUM(BM$10:$BM26) -> 56874 | BJ26: =SUM($BM$10:BM26) -> 56874 | BK26: =SUM(BM$10:$BM26) -> 56874 | BL26: 35048 | BM26: 4250 | BS26: =SUM($BW$10:BW26)/BH26 -> 7.941176471 | BT26: =SUM($BW$10:BW26)/BH26 -> 7.941176471 | BU26: =SUM($BW$10:BW26)/BH26 -> 7.941176471 | BV26: 8.3 | BW26: 9 | BX26: Healthy | BY26: Healthy | BZ26: Healthy | CA26: Ok | CB26: Ok | CC26: =INDEX($DP$22:$DP$25,MATCH(CM26,$DI$22:$DI$25,0))+INDEX($DP$11:$DP$14,MATCH(CW26,$DI$11:$DI$14,0)) -> 6 | CD26: 6 | CE26: 6 | CF26: 4 | CG26: 4 | CH26: 200731.7647 | CI26: 100365.8824 | CJ26: 66910.58824 | CK26: 35048 | CL26: 4250 | CM26: normal | CN26: normal | CO26: normal | CP26: normal | CQ26: normal | CW26: normal | CX26: normal | CY26: normal | CZ26: hyper | DA26: hyper | EH26: 0.5968871595 | EI26: 0.09470149254 | EJ26: 0.4359180328
A27: 18 | B27: 0 | C27: 2 | D27: 0.25 | F27: 0.042294 | G27: 153.4 | H27: 121.31 | I27: 110.8 | J27: 70.6 | K27: 8 | L27: 3 | M27: 2 | O27: 1.782 | P27: 136 | Q27: 17 | R27: 153 | S27: 0 | AF27: Z | AG27: =AG23/SUM(AG23:AG25) -> 0.5 | AH27: =AH23/SUM(AH23:AH25) -> 0.5 | AI27: =AI23/SUM(AI23:AI25) -> 0.5 | AJ27: 0.5 | AK27: 0.5 | AL27: 1 | AR27: 25 | AS27: 11530 | AT27: 12009 | AU27: k11530:k12009 | AV27: 9 | AW27: 36 | AX27: 13 | AY27: 15 | AZ27: 15 | BA27: 10 | BB27: 44 | BC27: 129 | BD27: 102 | BE27: 116 | BF27: 480 | BH27: 18 | BI27: =SUM(BM$10:$BM27) -> 62138 | BJ27: =SUM($BM$10:BM27) -> 62138 | BK27: =SUM(BM$10:$BM27) -> 62138 | BL27: 36295 | BM27: 5264 | BS27: =SUM($BW$10:BW27)/BH27 -> 8 | BT27: =SUM($BW$10:BW27)/BH27 -> 8 | BU27: =SUM($BW$10:BW27)/BH27 -> 8 | BV27: 8.3 | BW27: 9 | BX27: Healthy | BY27: Healthy | BZ27: Healthy | CA27: Ok | CB27: Ok | CC27: 6 | CD27: 6 | CE27: 6 | CF27: 4 | CG27: 4 | CH27: 207126.6667 | CI27: 103563.3333 | CJ27: 69042.22222 | CK27: 36295 | CL27: 5264 | CM27: normal | CN27: normal | CO27: normal | CP27: normal | CQ27: normal | CW27: normal | CX27: normal | CY27: normal | CZ27: hyper | DA27: hyper | EH27: 0.5968871595 | EI27: 0.09470149254 | EJ27: 0.4213114754
A28: 19 | B28: 0 | C28: 2 | D28: 0.375 | F28: 0.035912 | G28: 152.9 | H28: 121.18 | I28: 99.5 | J28: 70.5 | K28: 8 | L28: 3 | M28: 2 | O28: 0.5262128847 | P28: 153 | Q28: 18 | R28: 171 | S28: 0 | AF28: Y | AG28: =AG24/SUM(AG23:AG25) -> 0 | AH28: =AH24/SUM(AH23:AH25) -> 0 | AI28: =AI24/SUM(AI23:AI25) -> 0 | AJ28: 0 | AK28: 0 | AL28: 2 | AR28: 26 | AS28: 12010 | AT28: 12489 | AU28: k12010:k12489 | AV28: 0 | AW28: 0 | AX28: 0 | AY28: 0 | AZ28: 0 | BA28: 0 | BB28: 0 | BC28: 0 | BD28: 0 | BE28: 0 | BF28: 0 | BH28: 19 | BI28: =SUM(BM$10:$BM28) -> 67817 | BJ28: =SUM($BM$10:BM28) -> 67817 | BK28: =SUM(BM$10:$BM28) -> 67817 | BL28: 38750 | BM28: 5679 | BS28: =SUM($BW$10:BW28)/BH28 -> 8.052631579 | BT28: =SUM($BW$10:BW28)/BH28 -> 8.052631579 | BU28: =SUM($BW$10:BW28)/BH28 -> 8.052631579 | BV28: 8.3 | BW28: 9 | BX28: Ok | BY28: Ok | BZ28: Ok | CA28: Ok | CB28: Ok | CC28: 4 | CD28: 4 | CE28: 4 | CF28: 4 | CG28: 4 | CH28: 214158.9474 | CI28: 107079.4737 | CJ28: 71386.31579 | CK28: 38750 | CL28: 5679 | CM28: normal | CN28: normal | CO28: normal | CP28: normal | CQ28: normal | CW28: hyper | CX28: hyper | CY28: hyper | CZ28: hyper | DA28: hyper | EH28: 0.5949416342 | EI28: 0.09567164179 | EJ28: 0.4221311475
A29: 20 | B29: 0 | C29: 2 | D29: 0.5 | F29: 0.044041 | G29: 152.9 | H29: 121.18 | I29: 113.3 | J29: 68.8 | K29: 8 | L29: 3 | M29: 2 | O29: 1.7 | P29: 171 | Q29: 19 | R29: 190 | S29: 0 | AF29: X | AG29: =AG25/SUM(AG23:AG25) -> 0.5 | AH29: =AH25/SUM(AH23:AH25) -> 0.5 | AI29: =AI25/SUM(AI23:AI25) -> 0.5 | AJ29: 0.5 | AK29: 0.5 | AL29: 3 | AR29: 27 | AS29: 12490 | AT29: 12969 | AU29: k12490:k12969 | AV29: =9-SUMPRODUCT(--(AW29:BE29=0)) -> 0 | AW29: 0 | AX29: 0 | AY29: 0 | AZ29: 0 | BA29: 0 | BB29: 0 | BC29: 0 | BD29: 0 | BE29: 0 | BF29: 0 | BH29: 20 | BI29: =SUM(BM$10:$BM29) -> 71919 | BJ29: =SUM($BM$10:BM29) -> 71919 | BK29: =SUM(BM10:BM29) -> 71919 | BL29: 39208 | BM29: 4102 | BS29: =SUM($BW$10:BW29)/BH29 -> 8.1 | BT29: =SUM($BW$10:BW29)/BH29 -> 8.1 | BU29: =SUM(BW10:BW29)/BH29 -> 8.1 | BV29: 8.3 | BW29: 9 | BX29: Ok | BY29: Ok | BZ29: Ok | CA29: Ok | CB29: Ok | CC29: 4 | CD29: 4 | CE29: 4 | CF29: 4 | CG29: 4 | CH29: 215757 | CI29: 107878.5 | CJ29: 71919 | CK29: 39208 | CL29: 4102 | CM29: normal | CN29: normal | CO29: normal | CP29: normal | CQ29: =IF(CL29>=$DN$14,$DI$14,INDEX($DI$10:$DI$13,MATCH(CL29,$DN$10:$DN$13,1)+1)) -> normal | CW29: hyper | CX29: hyper | CY29: hyper | CZ29: hyper | DA29: hyper | EH29: 0.5949416342 | EI29: 0.09567164179 | EJ29: 0.4360655738
A30: 21 | B30: 0 | C30: 2 | D30: 0.625 | F30: 0.042153 | G30: 164.57 | H30: 121.28 | I30: 114.27 | J30: 68.727 | K30: 8 | L30: 3 | M30: 2 | O30: 11.67065675 | P30: 190 | Q30: 20 | R30: 210 | S30: 0 | AL30: 4 | AR30: 28 | AS30: 12970 | AT30: 13449 | AU30: k12970:k13449 | AV30: 0 | AW30: 0 | AX30: 0 | AY30: 0 | AZ30: 0 | BA30: 0 | BB30: 0 | BC30: 0 | BD30: 0 | BE30: 0 | BF30: 0 | BH30: 21 | BI30: =SUM(BM$10:$BM30) -> 75254 | BJ30: =SUM($BM$10:BM30) -> 75254 | BK30: =SUM(BM11:BM30) -> 71803 | BL30: 38664 | BM30: 3335 | BS30: =SUM($BW$10:BW30)/BH30 -> 8.047619048 | BT30: =SUM($BW$10:BW30)/BH30 -> 8.047619048 | BU30: =SUM(BW11:BW30)/20 -> 8.05 | BV30: 8.3 | BW30: 7 | BX30: Ok | BY30: Ok | BZ30: Ok | CA30: Ok | CB30: Healthy | CC30: 4 | CD30: 4 | CE30: 4 | CF30: 4 | CG30: 6 | CH30: 215011.4286 | CI30: 107505.7143 | CJ30: =BK30 -> 71803 | CK30: 38664 | CL30: 3335 | CM30: normal | CN30: normal | CO30: normal | CP30: normal | CQ30: normal | CW30: hyper | CX30: hyper | CY30: hyper | CZ30: hyper | DA30: normal | EH30: 0.6403501946 | EI30: 0.09492537313 | EJ30: 0.4366639344
A31: 22 | B31: 0 | C31: 2 | D31: 0.75 | F31: 0.042025 | G31: 164.57 | H31: 121.28 | I31: 116.71 | J31: 67.571 | K31: 8 | L31: 3 | M31: 2 | O31: 1.156 | P31: 210 | Q31: 90 | R31: 300 | S31: 0 | AL31: 5 | AR31: 29 | AS31: 13450 | AT31: 13929 | AU31: k13450:k13929 | AV31: 0 | AW31: 0 | AX31: 0 | AY31: 0 | AZ31: 0 | BA31: 0 | BB31: 0 | BC31: 0 | BD31: 0 | BE31: 0 | BF31: 0 | BH31: 22 | BI31: =SUM(BM$10:$BM31) -> 79236 | BJ31: =SUM($BM$10:BM31) -> 79236 | BK31: =SUM(BM12:BM31) -> 73050 | BL31: 39507 | BM31: 3982 | BS31: =SUM($BW$10:BW31)/BH31 -> 8.090909091 | BT31: =SUM($BW$10:BW31)/BH31 -> 8.090909091 | BU31: =SUM(BW12:BW31)/20 -> 8.05 | BV31: 8.3 | BW31: 9 | BX31: Ok | BY31: Ok | BZ31: Ok | CA31: Ok | CB31: Ok | CC31: 4 | CD31: 4 | CE31: 4 | CF31: 4 | CG31: 4 | CH31: 216098.1818 | CI31: 108049.0909 | CJ31: =BK31 -> 73050 | CK31: 39507 | CL31: 3982 | CM31: normal | CN31: normal | CO31: normal | CP31: normal | CQ31: normal | CW31: hyper | CX31: hyper | CY31: hyper | CZ31: hyper | DA31: hyper | EH31: 0.6403501946 | EI31: 0.09492537313 | EJ31: 0.4461393443
A32: 23 | B32: 0 | C32: 2 | D32: 0.875 | F32: 0.039408 | G32: 166.48 | H32: 120.66 | I32: 116.09 | J32: 65.091 | K32: 8 | L32: 3 | M32: 2 | O32: 3.191065653 | AL32: 6 | AR32: 30 | AS32: 13930 | AT32: 14409 | AU32: k13930:k14409 | AV32: 0 | AW32: 0 | AX32: 0 | AY32: 0 | AZ32: 0 | BA32: 0 | BB32: 0 | BC32: 0 | BD32: 0 | BE32: 0 | BF32: 0 | BH32: 23 | BI32: =SUM(BM$10:$BM32) -> 83426 | BJ32: =SUM($BM$10:BM32) -> 83426 | BK32: =SUM(BM13:BM32) -> 74154 | BL32: 40845 | BM32: 4190 | BS32: =SUM($BW$10:BW32)/BH32 -> 8.043478261 | BT32: =SUM($BW$10:BW32)/BH32 -> 8.043478261 | BU32: 8 | BV32: 8.2 | BW32: 7 | BX32: Ok | BY32: Ok | BZ32: Healthy | CA32: Ok | CB32: Healthy | CC32: =INDEX($DP$22:$DP$25,MATCH(CM32,$DI$22:$DI$25,0))+INDEX($DP$11:$DP$14,MATCH(CW32,$DI$11:$DI$14,0)) -> 4 | CD32: 4 | CE32: 6 | CF32: 4 | CG32: 6 | CH32: 217633.0435 | CI32: 108816.5217 | CJ32: 74154 | CK32: 40845 | CL32: 4190 | CM32: normal | CN32: normal | CO32: normal | CP32: normal | CQ32: normal | CW32: hyper | CX32: hyper | CY32: normal | CZ32: hyper | DA32: normal | EH32: 0.6477821012 | EI32: 0.09955223881 | EJ32: 0.4664672131
A33: 24 | B33: 0 | C33: 3 | D33: 0 | F33: 0.038806 | G33: 170.61 | H33: 121.54 | I33: 117.85 | J33: 62.462 | K33: 8 | L33: 3 | M33: 2 | O33: 4.974227679 | AL33: 7 | AR33: 31 | AS33: =AT32+1 -> 14410 | AT33: =AS33+480-1 -> 14889 | AU33: ="k"&AS33&":k"&AT33 -> k14410:k14889 | AV33: 0 | AW33: 0 | AX33: 0 | AY33: 0 | AZ33: 0 | BA33: 0 | BB33: 0 | BC33: 0 | BD33: 0 | BE33: 0 | BF33: =SUM(AW33:BE33) -> 0 | BH33: 24 | BI33: =SUM(BM$10:$BM33) -> 87920 | BJ33: =SUM($BM$10:BM33) -> 87920 | BK33: =SUM(BM14:BM33) -> 75475 | BL33: 42268 | BM33: 4494 | BS33: =SUM($BW$10:BW33)/BH33 -> 8.083333333 | BT33: =SUM($BW$10:BW33)/BH33 -> 8.083333333 | BU33: 8 | BV33: 8.4 | BW33: 9 | BX33: Ok | BY33: Ok | BZ33: Healthy | CA33: Ok | CB33: Ok | CC33: =INDEX($DP$22:$DP$25,MATCH(CM33,$DI$22:$DI$25,0))+INDEX($DP$11:$DP$14,MATCH(CW33,$DI$11:$DI$14,0)) -> 4 | CD33: 4 | CE33: 6 | CF33: 4 | CG33: 4 | CH33: 219800 | CI33: 109900 | CJ33: 75475 | CK33: 42268 | CL33: 4494 | CM33: normal | CN33: normal | CO33: normal | CP33: normal | CQ33: normal | CW33: hyper | CX33: hyper | CY33: normal | CZ33: hyper | DA33: hyper | EH33: 0.6638521401 | EI33: 0.09298507463 | EJ33: 0.4880163934
A34: 25 | B34: 0 | C34: 3 | D34: 0.125 | F34: 0.038624 | G34: 170.61 | H34: 121.54 | I34: 118.13 | J34: 59.375 | K34: 8 | L34: 3 | M34: 2 | O34: 3.087 | AL34: 8 | AR34: 32 | AS34: 14890 | AT34: 15369 | AU34: k14890:k15369 | AV34: 0 | AW34: 0 | AX34: 0 | AY34: 0 | AZ34: 0 | BA34: 0 | BB34: 0 | BC34: 0 | BD34: 0 | BE34: 0 | BF34: 0 | BH34: 25 | BI34: =SUM(BM$10:$BM34) -> 92200 | BJ34: =SUM($BM$10:BM34) -> 92200 | BK34: =SUM(BM15:BM34) -> 77332 | BL34: 42818 | BM34: 4280 | BS34: =SUM($BW$10:BW34)/BH34 -> 8.12 | BT34: =SUM($BW$10:BW34)/BH34 -> 8.12 | BU34: 8.3 | BV34: 8.4 | BW34: 9 | BX34: Ok | BY34: Ok | BZ34: Ok | CA34: Ok | CB34: Ok | CC34: =INDEX($DP$22:$DP$25,MATCH(CM34,$DI$22:$DI$25,0))+INDEX($DP$11:$DP$14,MATCH(CW34,$DI$11:$DI$14,0)) -> 4 | CD34: 4 | CE34: 4 | CF34: 4 | CG34: 4 | CH34: 221280 | CI34: 110640 | CJ34: 77332 | CK34: 42818 | CL34: 4280 | CM34: normal | CN34: normal | CO34: normal | CP34: normal | CQ34: normal | CW34: hyper | CX34: hyper | CY34: hyper | CZ34: hyper | DA34: hyper | EH34: 0.6638521401 | EI34: 0.09298507463 | EJ34: 0.5133196721
A35: 26 | B35: 0 | C35: 3 | D35: 0.25 | F35: 0.044158 | G35: 170.61 | H35: 121.54 | I35: 117.35 | J35: 55 | K35: 8 | L35: 3 | M35: 2 | O35: 4.375 | AL35: 9 | AR35: 33 | AS35: 15370 | AT35: 15849 | AU35: k15370:k15849 | AV35: 0 | AW35: 0 | AX35: 0 | AY35: 0 | AZ35: 0 | BA35: 0 | BB35: 0 | BC35: 0 | BD35: 0 | BE35: 0 | BF35: 0 | BH35: 26 | BI35: =SUM(BM$10:$BM35) -> 92303 | BJ35: =SUM($BM$10:BM35) -> 92303 | BK35: 74033 | BL35: 39679 | BM35: 103 | BS35: =SUM($BW$10:BW35)/BH35 -> 7.807692308 | BT35: =SUM($BW$10:BW35)/BH35 -> 7.807692308 | BU35: 8 | BV35: 7.7 | BW35: 0 | BX35: Healthy | BY35: Healthy | BZ35: Healthy | CA35: Healthy | CB35: Abnormal | CC35: 6 | CD35: 6 | CE35: 6 | CF35: 6 | CG35: 0 | CH35: 213006.9231 | CI35: 106503.4615 | CJ35: 74033 | CK35: 39679 | CL35: 103 | CM35: normal | CN35: normal | CO35: normal | CP35: normal | CQ35: hypo | CW35: normal | CX35: normal | CY35: normal | CZ35: normal | DA35: hypo | EH35: 0.6638521401 | EI35: 0.09298507463 | EJ35: 0.5491803279
A36: 27 | B36: 0 | C36: 3 | D36: 0.375 | F36: 0.04265 | G36: 170.61 | H36: 121.54 | I36: 117.11 | J36: 51.053 | K36: 8 | L36: 3 | M36: 2 | O36: 3.947 | AR36: 34 | AS36: 15850 | AT36: 16329 | AU36: k15850:k16329 | AV36: 0 | AW36: 0 | AX36: 0 | AY36: 0 | AZ36: 0 | BA36: 0 | BB36: 0 | BC36: 0 | BD36: 0 | BE36: 0 | BF36: 0 | BH36: 27 | BI36: =SUM(BM$10:$BM36) -> 92303 | BJ36: =SUM($BM$10:BM36) -> 92303 | BK36: 70477 | BL36: 35429 | BM36: 0 | BS36: =SUM($BW$10:BW36)/BH36 -> 7.518518519 | BT36: =SUM($BW$10:BW36)/BH36 -> 7.518518519 | BU36: 7.55 | BV36: 6.8 | BW36: 0 | BX36: Healthy | BY36: Healthy | BZ36: Healthy | CA36: Healthy | CB36: Abnormal | CC36: 6 | CD36: 6 | CE36: 6 | CF36: 6 | CG36: 0 | CH36: 205117.7778 | CI36: 102558.8889 | CJ36: 70477 | CK36: 35429 | CL36: 0 | CM36: normal | CN36: normal | CO36: normal | CP36: normal | CQ36: hypo | CW36: normal | CX36: normal | CY36: normal | CZ36: normal | DA36: hypo | EH36: 0.6638521401 | EI36: 0.09298507463 | EJ36: 0.5815327869
A37: 28 | B37: 0 | C37: 3 | D37: 0.5 | F37: 0.032481 | G37: 170.61 | H37: 121.54 | I37: 117.23 | J37: 47.385 | K37: 8 | L37: 3 | M37: 2 | O37: 3.668 | AR37: 35 | AS37: 16330 | AT37: 16809 | AU37: k16330:k16809 | AV37: 0 | AW37: 0 | AX37: 0 | AY37: 0 | AZ37: 0 | BA37: 0 | BB37: 0 | BC37: 0 | BD37: 0 | BE37: 0 | BF37: 0 | BH37: 28 | BI37: =SUM(BM$10:$BM37) -> 92303 | BJ37: =SUM($BM$10:BM37) -> 92303 | BK37: 66460 | BL37: 30165 | BM37: 0 | BS37: =SUM($BW$10:BW37)/BH37 -> 7.25 | BT37: =SUM($BW$10:BW37)/BH37 -> 7.25 | BU37: 7.1 | BV37: 5.9 | BW37: 0 | BX37: Healthy | BY37: Healthy | BZ37: Healthy | CA37: Healthy | CB37: Abnormal | CC37: 6 | CD37: 6 | CE37: 6 | CF37: 6 | CG37: 0 | CH37: 197792.1429 | CI37: 98896.07143 | CJ37: 66460 | CK37: 30165 | CL37: 0 | CM37: normal | CN37: normal | CO37: normal | CP37: normal | CQ37: hypo | CW37: normal | CX37: normal | CY37: normal | CZ37: normal | DA37: hypo | EH37: 0.6638521401 | EI37: 0.09298507463 | EJ37: 0.6115983607
A38: 29 | B38: 0 | C38: 3 | D38: 0.625 | F38: 0.043329 | G38: 170.61 | H38: 121.54 | I38: 115.21 | J38: 45.25 | K38: 8 | L38: 3 | M38: 2 | O38: 2.135 | AR38: 36 | AS38: 16810 | AT38: 17289 | AU38: k16810:k17289 | AV38: 0 | AW38: 0 | AX38: 0 | AY38: 0 | AZ38: 0 | BA38: 0 | BB38: 0 | BC38: 0 | BD38: 0 | BE38: 0 | BF38: 0 | BH38: 29 | BI38: =SUM(BM$10:$BM38) -> 92303 | BJ38: =SUM($BM$10:BM38) -> 92303 | BK38: 63236 | BL38: 24486 | BM38: 0 | BS38: =SUM($BW$10:BW38)/BH38 -> 7 | BT38: =SUM($BW$10:BW38)/BH38 -> 7 | BU38: 6.65 | BV38: 5 | BW38: 0 | BX38: Healthy | BY38: Healthy | BZ38: Healthy | CA38: Ok | CB38: Abnormal | CC38: 6 | CD38: 6 | CE38: 6 | CF38: 4.5 | CG38: 0 | CH38: 190971.7241 | CI38: 95485.86207 | CJ38: 63236 | CK38: 24486 | CL38: 0 | CM38: normal | CN38: normal | CO38: normal | CP38: low | CQ38: hypo | CW38: normal | CX38: normal | CY38: normal | CZ38: normal | DA38: hypo | EH38: 0.6638521401 | EI38: 0.09298507463 | EJ38: 0.6290983607
A39: 30 | B39: 0 | C39: 3 | D39: 0.75 | F39: 0.039262 | G39: 170.61 | H39: 121.54 | I39: 113.88 | J39: 40.6 | K39: 8 | L39: 3 | M39: 2 | O39: 4.65 | AR39: 37 | AS39: 17290 | AT39: 17769 | AU39: k17290:k17769 | AV39: 0 | AW39: =SUMPRODUCT(--(INDIRECT($AU39)=AW$1)) -> 0 | AX39: 0 | AY39: 0 | AZ39: 0 | BA39: 0 | BB39: 0 | BC39: 0 | BD39: 0 | BE39: 0 | BF39: 0 | BH39: 30 | BI39: =SUM(BM$10:$BM39) -> 92303 | BJ39: =SUM(BM10:BM39) -> 92303 | BK39: =SUM(BM20:BM39) -> 59592 | BL39: 20384 | BM39: 0 | BS39: =SUM($BW$10:BW39)/BH39 -> 6.766666667 | BT39: =SUM($BW$10:BW39)/BH39 -> 6.766666667 | BU39: 6.2 | BV39: 4.1 | BW39: 0 | BX39: Healthy | BY39: Healthy | BZ39: Healthy | CA39: Ok | CB39: Abnormal | CC39: 6 | CD39: 6 | CE39: 6 | CF39: 4.5 | CG39: 0 | CH39: 184606 | CI39: 92303 | CJ39: 59592 | CK39: 20384 | CL39: 0 | CM39: normal | CN39: normal | CO39: normal | CP39: low | CQ39: hypo | CW39: normal | CX39: normal | CY39: normal | CZ39: normal | DA39: hypo | EH39: 0.6638521401 | EI39: 0.09298507463 | EJ39: 0.6672131148
A40: 31 | B40: 0 | C40: 3 | D40: 0.875 | F40: 0.0385 | G40: 170.61 | H40: 121.54 | I40: 113.42 | J40: 36.583 | K40: 8 | L40: 3 | M40: 2 | O40: 4.017 | AR40: 38 | AS40: 17770 | AT40: 18249 | AU40: k17770:k18249 | AV40: 0 | AW40: 0 | AX40: 0 | AY40: 0 | AZ40: 0 | BA40: 0 | BB40: 0 | BC40: 0 | BD40: 0 | BE40: 0 | BF40: 0 | BH40: 31 | BI40: =SUM(BM$10:$BM40) -> 92303 | BJ40: =SUM(BM11:BM40) -> 88852 | BK40: =SUM(BM21:BM40) -> 55713 | BL40: =SUM(BM31:BM40) -> 17049 | BM40: =ROUND(SUM(INDIRECT("o"&AS33&":o"&AT33)),0) -> 0 | BS40: =SUM($BW$10:BW40)/BH40 -> 6.548387097 | BT40: =SUM($BW11:BW40)/30 -> 6.5 | BU40: =SUM(BW21:BW40)/20 -> 5.85 | BV40: =SUM(BW31:BW40)/10 -> 3.4 | BW40: =AV33 -> 0 | BX40: Healthy | BY40: =INDEX($DY$11:$DY$17,MATCH(CD40,$DW$11:$DW$17,1)) -> Healthy | BZ40: =INDEX($DY$11:$DY$17,MATCH(CE40,$DW$11:$DW$17,1)) -> Healthy | CA40: =INDEX($DY$11:$DY$17,MATCH(CF40,$DW$11:$DW$17,1)) -> Unhealthy | CB40: =INDEX($DY$11:$DY$17,MATCH(CG40,$DW$11:$DW$17,1)) -> Abnormal | CC40: 6 | CD40: =INDEX($DP$22:$DP$25,MATCH(CN40,$DI$22:$DI$25,0))+INDEX($DP$11:$DP$14,MATCH(CX40,$DI$11:$DI$14,0)) -> 6 | CE40: =INDEX($DP$22:$DP$25,MATCH(CO40,$DI$22:$DI$25,0))+INDEX($DP$11:$DP$14,MATCH(CY40,$DI$11:$DI$14,0)) -> 6 | CF40: =INDEX($DP$22:$DP$25,MATCH(CP40,$DI$22:$DI$25,0))+INDEX($DP$11:$DP$14,MATCH(CZ40,$DI$11:$DI$14,0)) -> 3 | CG40: =INDEX($DP$22:$DP$25,MATCH(CQ40,$DI$22:$DI$25,0))+INDEX($DP$11:$DP$14,MATCH(DA40,$DI$11:$DI$14,0)) -> 0 | CH40: 178650.9677 | CI40: 88852 | CJ40: 55713 | CK40: 17049 | CL40: 0 | CM40: normal | CN40: =IF(CI40>=$DK$14,$DI$14,INDEX($DI$10:$DI$13,MATCH(CI40,$DK$10:$DK$13,1)+1)) -> normal | CO40: =IF(CJ40>=$DL$14,$DI$14,INDEX($DI$10:$DI$13,MATCH(CJ40,$DL$10:$DL$13,1)+1)) -> normal | CP40: =IF(CK40>=$DM$14,$DI$14,INDEX($DI$10:$DI$13,MATCH(CK40,$DM$10:$DM$13,1)+1)) -> low | CQ40: =IF(CL40>=$DN$14,$DI$14,INDEX($DI$10:$DI$13,MATCH(CL40,$DN$10:$DN$13,1)+1)) -> hypo | CW40: normal | CX40: normal | CY40: =IF(BU40>=$DL$25,$DI$25,INDEX($DI$21:$DI$24,MATCH(BU40,$DL$21:$DL$24,1))) -> normal | CZ40: =IF(BV40>=$DM$25,$DI$25,INDEX($DI$21:$DI$24,MATCH(BV40,$DM$21:$DM$24,1))) -> low | DA40: hypo | EH40: 0.6638521401 | EI40: 0.09298507463 | EJ40: 0.7001393443
A41: 32 | B41: 0 | C41: 4 | D41: 0 | F41: 0.03527 | G41: 170.61 | H41: 121.54 | I41: 111.76 | J41: 33.294 | K41: 8 | L41: 3 | M41: 2 | O41: 3.289 | AR41: 39 | AS41: 18250 | AT41: 18729 | AU41: k18250:k18729 | AV41: 0 | AW41: 0 | AX41: 0 | AY41: 0 | AZ41: 0 | BA41: 0 | BB41: 0 | BC41: 0 | BD41: 0 | BE41: 0 | BF41: 0 | BH41: 32 | BI41: =SUM(BM$10:$BM41) -> 92303 | BJ41: =SUM(BM12:BM41) -> 86117 | BK41: =SUM(BM22:BM41) -> 52574 | BL41: 13067 | BM41: 0 | BS41: =SUM($BW$10:BW41)/BH41 -> 6.34375 | BT41: =SUM($BW12:BW41)/30 -> 6.2 | BU41: 5.4 | BV41: 2.5 | BW41: 0 | BX41: Healthy | BY41: Healthy | BZ41: Ok | CA41: Abnormal | CB41: Abnormal | CC41: 6 | CD41: 6 | CE41: 4.5 | CF41: 0 | CG41: 0 | CH41: 173068.125 | CI41: 86117 | CJ41: 52574 | CK41: 13067 | CL41: 0 | CM41: normal | CN41: normal | CO41: low | CP41: hypo | CQ41: hypo | CW41: normal | CX41: normal | CY41: normal | CZ41: hypo | DA41: hypo | EH41: 0.6638521401 | EI41: 0.09298507463 | EJ41: 0.7270983607
A42: 33 | B42: 0 | C42: 4 | D42: 0.125 | F42: 0.042759 | G42: 170.61 | H42: 121.54 | I42: 109.91 | J42: 32.273 | K42: 8 | L42: 3 | M42: 2 | O42: 1.021 | AR42: 40 | AS42: 18730 | AT42: 19209 | AU42: k18730:k19209 | AV42: 0 | AW42: 0 | AX42: 0 | AY42: 0 | AZ42: 0 | BA42: 0 | BB42: 0 | BC42: 0 | BD42: 0 | BE42: 0 | BF42: 0 | BH42: 33 | BI42: =SUM(BM$10:$BM42) -> 92303 | BJ42: =SUM(BM13:BM42) -> 83031 | BK42: =SUM(BM23:BM42) -> 49722 | BL42: 8877 | BM42: 0 | BS42: =SUM($BW$10:BW42)/BH42 -> 6.151515152 | BT42: =SUM($BW13:BW42)/30 -> 5.933333333 | BU42: 5 | BV42: 1.8 | BW42: 0 | BX42: Healthy | BY42: Healthy | BZ42: Ok | CA42: Abnormal | CB42: Abnormal | CC42: 6 | CD42: 6 | CE42: 4.5 | CF42: 0 | CG42: 0 | CH42: 167823.6364 | CI42: 83031 | CJ42: 49722 | CK42: 8877 | CL42: 0 | CM42: normal | CN42: normal | CO42: low | CP42: hypo | CQ42: hypo | CW42: normal | CX42: normal | CY42: normal | CZ42: hypo | DA42: hypo | EH42: 0.6638521401 | EI42: 0.09298507463 | EJ42: 0.7354672131
A43: 34 | B43: 0 | C43: 4 | D43: 0.25 | F43: 0.034464 | G43: 155.2 | H43: 121.57 | I43: 103.15 | J43: 27.65 | K43: 8 | L43: 3 | M43: 2 | O43: 16.0885403 | AR43: 41 | AS43: 19210 | AT43: 19689 | AU43: k19210:k19689 | AV43: =9-SUMPRODUCT(--(AW43:BE43=0)) -> 0 | AW43: 0 | AX43: 0 | AY43: 0 | AZ43: 0 | BA43: 0 | BB43: 0 | BC43: 0 | BD43: 0 | BE43: 0 | BF43: 0 | BH43: 34 | BI43: =SUM(BM$10:$BM43) -> 92303 | BJ43: =SUM(BM14:BM43) -> 79858 | BK43: =SUM(BM24:BM43) -> 46651 | BL43: 4383 | BM43: 0 | BS43: =SUM($BW$10:BW43)/BH43 -> 5.970588235 | BT43: =SUM($BW14:BW43)/30 -> 5.633333333 | BU43: 4.65 | BV43: 0.9 | BW43: 0 | BX43: Healthy | BY43: Ok | BZ43: Ok | CA43: Abnormal | CB43: Abnormal | CC43: 6 | CD43: 4.5 | CE43: 4.5 | CF43: 0 | CG43: 0 | CH43: 162887.6471 | CI43: 79858 | CJ43: 46651 | CK43: 4383 | CL43: 0 | CM43: normal | CN43: low | CO43: low | CP43: hypo | CQ43: hypo | CW43: normal | CX43: normal | CY43: normal | CZ43: hypo | DA43: hypo | EH43: 0.6038910506 | EI43: 0.09276119403 | EJ43: 0.7733606557
A44: 35 | B44: 0 | C44: 4 | D44: 0.375 | F44: 0.043351 | G44: 155.2 | H44: 121.57 | I44: 100.27 | J44: 25.636 | K44: 8 | L44: 3 | M44: 2 | O44: 2.014 | AR44: 42 | AS44: 19690 | AT44: 20169 | AU44: k19690:k20169 | AV44: 0 | AW44: 0 | AX44: 0 | AY44: 0 | AZ44: 0 | BA44: 0 | BB44: 0 | BC44: 0 | BD44: 0 | BE44: 0 | BF44: 0 | BH44: 35 | BI44: =SUM(BM$10:$BM44) -> 92303 | BJ44: 77435 | BK44: 42921 | BL44: 103 | BM44: 0 | BS44: =SUM($BW$10:BW44)/BH44 -> 5.8 | BT44: =SUM($BW15:BW44)/30 -> 5.533333333 | BU44: 4.2 | BV44: 0 | BW44: 0 | BX44: Ok | BY44: Ok | BZ44: Ok | CA44: Abnormal | CB44: Abnormal | CC44: 4.5 | CD44: 4.5 | CE44: 4.5 | CF44: 0 | CG44: 0 | CH44: 158233.7143 | CI44: 77435 | CJ44: 42921 | CK44: 103 | CL44: 0 | CM44: low | CN44: low | CO44: low | CP44: hypo | CQ44: hypo | CW44: normal | CX44: normal | CY44: normal | CZ44: hypo | DA44: hypo | EH44: 0.6038910506 | EI44: 0.09276119403 | EJ44: 0.7898688525
A45: 36 | B45: 0 | C45: 4 | D45: 0.5 | F45: 0.032964 | G45: 149.16 | H45: 121.39 | I45: 97.3 | J45: 23.9 | K45: 8 | L45: 3 | M45: 2 | O45: 6.287105534 | AR45: 43 | AS45: 20170 | AT45: 20649 | AU45: k20170:k20649 | AV45: 0 | AW45: 0 | AX45: 0 | AY45: 0 | AZ45: 0 | BA45: 0 | BB45: 0 | BC45: 0 | BD45: 0 | BE45: 0 | BF45: 0 | BH45: 36 | BI45: =SUM(BM$10:$BM45) -> 92303 | BJ45: 74033 | BK45: 39679 | BL45: 0 | BM45: 0 | BS45: =SUM($BW$10:BW45)/BH45 -> 5.638888889 | BT45: =SUM($BW16:BW45)/30 -> 5.333333333 | BU45: 3.85 | BV45: 0 | BW45: 0 | BX45: Ok | BY45: Ok | BZ45: Unhealthy | CA45: Abnormal | CB45: Abnormal | CC45: 4.5 | CD45: 4.5 | CE45: 3 | CF45: 0 | CG45: 0 | CH45: 153838.3333 | CI45: 74033 | CJ45: 39679 | CK45: 0 | CL45: 0 | CM45: low | CN45: low | CO45: low | CP45: hypo | CQ45: hypo | CW45: normal | CX45: normal | CY45: low | CZ45: hypo | DA45: hypo | EH45: 0.5803891051 | EI45: 0.09410447761 | EJ45: 0.8040983607
A46: 37 | B46: 0 | C46: 4 | D46: 0.625 | F46: 0.043049 | G46: 142.16 | H46: 121.18 | I46: 93.786 | J46: 22.429 | K46: 8 | L46: 3 | M46: 2 | O46: 7.155972401 | AR46: 44 | AS46: 20650 | AT46: 21129 | AU46: k20650:k21129 | AV46: 0 | AW46: 0 | AX46: 0 | AY46: 0 | AZ46: 0 | BA46: 0 | BB46: 0 | BC46: 0 | BD46: 0 | BE46: 0 | BF46: 0 | BH46: 37 | BI46: =SUM(BM$10:$BM46) -> 92303 | BJ46: 70477 | BK46: 35429 | BL46: 0 | BM46: 0 | BS46: =SUM($BW$10:BW46)/BH46 -> 5.486486486 | BT46: =SUM($BW17:BW46)/30 -> 5.033333333 | BU46: 3.4 | BV46: 0 | BW46: 0 | BX46: Ok | BY46: Ok | BZ46: Unhealthy | CA46: Abnormal | CB46: Abnormal | CC46: 4.5 | CD46: 4.5 | CE46: 3 | CF46: 0 | CG46: 0 | CH46: 149680.5405 | CI46: 70477 | CJ46: 35429 | CK46: 0 | CL46: 0 | CM46: low | CN46: low | CO46: low | CP46: hypo | CQ46: hypo | CW46: normal | CX46: normal | CY46: low | CZ46: hypo | DA46: hypo | EH46: 0.553151751 | EI46: 0.09567164179 | EJ46: 0.8161557377
A47: 38 | B47: 0 | C47: 4 | D47: 0.75 | F47: 0.03685 | G47: 135.53 | H47: 121.38 | I47: 91.16 | J47: 24.56 | K47: 8 | L47: 3 | M47: 2 | O47: 6.966926223 | AR47: 45 | AS47: 21130 | AT47: 21609 | AU47: k21130:k21609 | AV47: 0 | AW47: 0 | AX47: 0 | AY47: 0 | AZ47: 0 | BA47: 0 | BB47: 0 | BC47: 0 | BD47: 0 | BE47: 0 | BF47: 0 | BH47: 38 | BI47: =SUM(BM$10:$BM47) -> 92303 | BJ47: 66460 | BK47: 30165 | BL47: 0 | BM47: 0 | BS47: =SUM($BW$10:BW47)/BH47 -> 5.342105263 | BT47: =SUM($BW18:BW47)/30 -> 4.733333333 | BU47: 2.95 | BV47: 0 | BW47: 0 | BX47: Ok | BY47: Ok | BZ47: Abnormal | CA47: Abnormal | CB47: Abnormal | CC47: 4.5 | CD47: 4.5 | CE47: 0 | CF47: 0 | CG47: 0 | CH47: 145741.5789 | CI47: 66460 | CJ47: 30165 | CK47: 0 | CL47: 0 | CM47: low | CN47: low | CO47: hypo | CP47: hypo | CQ47: hypo | CW47: normal | CX47: normal | CY47: hypo | CZ47: hypo | DA47: hypo | EH47: 0.5273540856 | EI47: 0.09417910448 | EJ47: 0.7986885246
A48: 39 | B48: 0 | C48: 4 | D48: 0.875 | F48: 0.042938 | G48: 135.53 | H48: 121.38 | I48: 86.714 | J48: 24.619 | K48: 8 | L48: 3 | M48: 2 | O48: 0.059 | AR48: 46 | AS48: 21610 | AT48: 22089 | AU48: k21610:k22089 | AV48: 0 | AW48: 0 | AX48: 0 | AY48: 0 | AZ48: 0 | BA48: 0 | BB48: 0 | BC48: 0 | BD48: 0 | BE48: 0 | BF48: 0 | BH48: 39 | BI48: =SUM(BM$10:$BM48) -> 92303 | BJ48: 63236 | BK48: 24486 | BL48: 0 | BM48: 0 | BS48: =SUM($BW$10:BW48)/BH48 -> 5.205128205 | BT48: =SUM($BW19:BW48)/30 -> 4.433333333 | BU48: 2.5 | BV48: 0 | BW48: =AV41 -> 0 | BX48: Ok | BY48: Ok | BZ48: Abnormal | CA48: Abnormal | CB48: Abnormal | CC48: 4.5 | CD48: 4.5 | CE48: 0 | CF48: 0 | CG48: 0 | CH48: 142004.6154 | CI48: 63236 | CJ48: 24486 | CK48: 0 | CL48: 0 | CM48: low | CN48: low | CO48: hypo | CP48: hypo | CQ48: hypo | CW48: normal | CX48: normal | CY48: hypo | CZ48: hypo | DA48: hypo | EH48: 0.5273540856 | EI48: 0.09417910448 | EJ48: 0.798204918
A49: 40 | B49: 0 | C49: 5 | D49: 0 | F49: 0.036357 | G49: 129.54 | H49: 120.93 | I49: 82.714 | J49: 24.619 | K49: 8 | L49: 3 | M49: 2 | O49: 6.00687939 | AR49: 47 | AS49: 22090 | AT49: 22569 | AU49: k22090:k22569 | AV49: 0 | AW49: 0 | AX49: 0 | AY49: 0 | AZ49: 0 | BA49: 0 | BB49: 0 | BC49: 0 | BD49: 0 | BE49: 0 | BF49: 0 | BH49: 40 | BI49: =SUM(BM$10:$BM49) -> 92303 | BJ49: 59592 | BK49: 20384 | BL49: 0 | BM49: 0 | BS49: =SUM($BW$10:BW49)/BH49 -> 5.075 | BT49: =SUM($BW20:BW49)/30 -> 4.133333333 | BU49: 2.05 | BV49: 0 | BW49: =AV42 -> 0 | BX49: Ok | BY49: Ok | BZ49: Abnormal | CA49: Abnormal | CB49: =INDEX($DY$11:$DY$17,MATCH(CG49,$DW$11:$DW$17,1)) -> Abnormal | CC49: 4.5 | CD49: 4.5 | CE49: 0 | CF49: 0 | CG49: =INDEX($DP$22:$DP$25,MATCH(CQ49,$DI$22:$DI$25,0))+INDEX($DP$11:$DP$14,MATCH(DA49,$DI$11:$DI$14,0)) -> 0 | CH49: 138454.5 | CI49: 59592 | CJ49: 20384 | CK49: 0 | CL49: 0 | CM49: low | CN49: low | CO49: hypo | CP49: hypo | CQ49: hypo | CW49: normal | CX49: normal | CY49: hypo | CZ49: hypo | DA49: hypo | EH49: 0.5040466926 | EI49: 0.09753731343 | EJ49: 0.798204918
A50: 41 | B50: 0 | C50: 5 | D50: 0.125 | F50: 0.038186 | G50: 120.1 | H50: 121.37 | I50: 82.52 | J50: 24.44 | K50: 8 | L50: 3 | M50: 2 | O50: 9.451943768 | AR50: 48 | AS50: 22570 | AT50: 23049 | AU50: k22570:k23049 | AV50: 0 | AW50: 0 | AX50: 0 | AY50: 0 | AZ50: 0 | BA50: 0 | BB50: 0 | BC50: 0 | BD50: 0 | BE50: 0 | BF50: 0 | BH50: 41 | BI50: =SUM(BM$10:$BM50) -> 92303 | BJ50: 55713 | BK50: 17049 | BL50: 0 | BM50: 0 | BS50: =SUM($BW$10:BW50)/BH50 -> 4.951219512 | BT50: =SUM($BW21:BW50)/30 -> 3.9 | BU50: 1.7 | BV50: 0 | BW50: 0 | BX50: Ok | BY50: Unhealthy | BZ50: Abnormal | CA50: Abnormal | CB50: Abnormal | CC50: 4.5 | CD50: 3 | CE50: 0 | CF50: 0 | CG50: =INDEX($DP$22:$DP$25,MATCH(CQ50,$DI$22:$DI$25,0))+INDEX($DP$11:$DP$14,MATCH(DA50,$DI$11:$DI$14,0)) -> 0 | CH50: 135077.561 | CI50: 55713 | CJ50: 17049 | CK50: 0 | CL50: 0 | CM50: low | CN50: low | CO50: hypo | CP50: hypo | CQ50: hypo | CW50: normal | CX50: low | CY50: hypo | CZ50: hypo | DA50: =IF(BW50>=$DN$25,$DI$25,INDEX($DI$21:$DI$24,MATCH(BW50,$DN$21:$DN$24,1))) -> hypo | EH50: 0.4673151751 | EI50: 0.09425373134 | EJ50: 0.7996721311
A51: 42 | B51: 0 | C51: 5 | D51: 0.25 | F51: 0.042876 | G51: 120.1 | H51: 121.37 | I51: 78.765 | J51: 23.882 | K51: 8 | L51: 3 | M51: 2 | O51: 0.558 | AR51: 49 | AS51: 23050 | AT51: 23529 | AU51: k23050:k23529 | AV51: 0 | AW51: 0 | AX51: 0 | AY51: 0 | AZ51: 0 | BA51: 0 | BB51: 0 | BC51: 0 | BD51: 0 | BE51: 0 | BF51: 0 | BH51: 42 | BI51: =SUM(BM$10:$BM51) -> 92303 | BJ51: 52574 | BK51: 13067 | BL51: 0 | BM51: 0 | BS51: =SUM($BW$10:BW51)/BH51 -> 4.833333333 | BT51: =SUM($BW22:BW51)/30 -> 3.6 | BU51: 1.25 | BV51: 0 | BW51: 0 | BX51: Ok | BY51: Unhealthy | BZ51: Abnormal | CA51: Abnormal | CB51: Abnormal | CC51: 4.5 | CD51: 3 | CE51: 0 | CF51: 0 | CG51: =INDEX($DP$22:$DP$25,MATCH(CQ51,$DI$22:$DI$25,0))+INDEX($DP$11:$DP$14,MATCH(DA51,$DI$11:$DI$14,0)) -> 0 | CH51: 131861.4286 | CI51: 52574 | CJ51: 13067 | CK51: 0 | CL51: 0 | CM51: low | CN51: low | CO51: hypo | CP51: hypo | CQ51: hypo | CW51: normal | CX51: low | CY51: hypo | CZ51: hypo | DA51: hypo | EH51: 0.4673151751 | EI51: 0.09425373134 | EJ51: 0.8042459016
A52: 43 | B52: 0 | C52: 5 | D52: 0.375 | F52: 0.037509 | G52: 116.21 | H52: 120.95 | I52: 81.833 | J52: 25.833 | K52: 8 | L52: 3 | M52: 2 | O52: 4.372059126 | AR52: 50 | AS52: 23530 | AT52: 24009 | AU52: k23530:k24009 | AV52: 0 | AW52: 0 | AX52: 0 | AY52: 0 | AZ52: 0 | BA52: 0 | BB52: 0 | BC52: 0 | BD52: 0 | BE52: 0 | BF52: 0 | BH52: 43 | BI52: =SUM(BM$10:$BM52) -> 92303 | BJ52: 49722 | BK52: 8877 | BL52: 0 | BM52: 0 | BS52: =SUM($BW$10:BW52)/BH52 -> 4.720930233 | BT52: =SUM($BW23:BW52)/30 -> 3.333333333 | BU52: 0.9 | BV52: 0 | BW52: 0 | BX52: Ok | BY52: Abnormal | BZ52: Abnormal | CA52: Abnormal | CB52: Abnormal | CC52: 4.5 | CD52: 1.5 | CE52: 0 | CF52: 0 | CG52: 0 | CH52: 128794.8837 | CI52: 49722 | CJ52: 8877 | CK52: 0 | CL52: 0 | CM52: low | CN52: hypo | CO52: hypo | CP52: hypo | CQ52: hypo | CW52: normal | CX52: low | CY52: hypo | CZ52: hypo | DA52: hypo | EH52: 0.4521789883 | EI52: 0.0973880597 | EJ52: 0.7882540984
A53: 44 | B53: 0 | C53: 5 | D53: 0.5 | F53: 0.039571 | G53: 107.57 | H53: 121.72 | I53: 73.15 | J53: 24.2 | K53: 8 | L53: 3 | M53: 2 | O53: 8.826618209 | AR53: 51 | AS53: 24010 | AT53: 24489 | AU53: k24010:k24489 | AV53: 0 | AW53: 0 | AX53: 0 | AY53: 0 | AZ53: 0 | BA53: 0 | BB53: 0 | BC53: 0 | BD53: 0 | BE53: 0 | BF53: 0 | BH53: 44 | BI53: =SUM(BM$10:$BM53) -> 92303 | BJ53: 46651 | BK53: 4383 | BL53: 0 | BM53: 0 | BS53: =SUM($BW$10:BW53)/BH53 -> 4.613636364 | BT53: =SUM($BW24:BW53)/30 -> 3.1 | BU53: 0.45 | BV53: 0 | BW53: 0 | BX53: Ok | BY53: Abnormal | BZ53: Abnormal | CA53: Abnormal | CB53: Abnormal | CC53: 4.5 | CD53: 1.5 | CE53: 0 | CF53: 0 | CG53: 0 | CH53: 125867.7273 | CI53: 46651 | CJ53: 4383 | CK53: 0 | CL53: 0 | CM53: low | CN53: hypo | CO53: hypo | CP53: hypo | CQ53: hypo | CW53: normal | CX53: low | CY53: hypo | CZ53: hypo | DA53: hypo | EH53: 0.4185603113 | EI53: 0.09164179104 | EJ53: 0.8016393443
A54: 45 | B54: 0 | C54: 5 | D54: 0.625 | F54: 0.039248 | G54: 107.57 | H54: 121.72 | I54: 69.5 | J54: 25.917 | K54: 8 | L54: 3 | M54: 2 | O54: 1.717 | AR54: 52 | AS54: 24490 | AT54: 24969 | AU54: k24490:k24969 | AV54: 0 | AW54: 0 | AX54: 0 | AY54: 0 | AZ54: 0 | BA54: 0 | BB54: 0 | BC54: 0 | BD54: 0 | BE54: 0 | BF54: 0 | BH54: 45 | BI54: =SUM(BM$10:$BM54) -> 92303 | BJ54: 42921 | BK54: 103 | BL54: 0 | BM54: 0 | BS54: =SUM($BW$10:BW54)/BH54 -> 4.511111111 | BT54: =SUM($BW25:BW54)/30 -> 2.8 | BU54: 0 | BV54: 0 | BW54: 0 | BX54: Ok | BY54: Abnormal | BZ54: Abnormal | CA54: Abnormal | CB54: Abnormal | CC54: 4.5 | CD54: 0 | CE54: 0 | CF54: 0 | CG54: 0 | CH54: 123070.6667 | CI54: 42921 | CJ54: 103 | CK54: 0 | CL54: 0 | CM54: low | CN54: hypo | CO54: hypo | CP54: hypo | CQ54: hypo | CW54: normal | CX54: hypo | CY54: hypo | CZ54: hypo | DA54: hypo | EH54: 0.4185603113 | EI54: 0.09164179104 | EJ54: 0.7875655738
A55: 46 | B55: 0 | C55: 5 | D55: 0.75 | F55: 0.039581 | G55: 100.63 | H55: 120.13 | I55: 64.105 | J55: 27.158 | K55: 8 | L55: 3 | M55: 2 | O55: 7.227155803 | AR55: 53 | AS55: 24970 | AT55: 25449 | AU55: k24970:k25449 | AV55: 0 | AW55: 0 | AX55: 0 | AY55: 0 | AZ55: 0 | BA55: 0 | BB55: 0 | BC55: 0 | BD55: 0 | BE55: 0 | BF55: 0 | BH55: 46 | BI55: =SUM(BM$10:$BM55) -> 92303 | BJ55: 39679 | BK55: 0 | BL55: 0 | BM55: 0 | BS55: =SUM($BW$10:BW55)/BH55 -> 4.413043478 | BT55: =SUM($BW26:BW55)/30 -> 2.566666667 | BU55: 0 | BV55: 0 | BW55: 0 | BX55: Ok | BY55: Abnormal | BZ55: Abnormal | CA55: Abnormal | CB55: Abnormal | CC55: 4.5 | CD55: 0 | CE55: 0 | CF55: 0 | CG55: 0 | CH55: 120395.2174 | CI55: 39679 | CJ55: 0 | CK55: 0 | CL55: 0 | CM55: low | CN55: hypo | CO55: hypo | CP55: hypo | CQ55: hypo | CW55: normal | CX55: hypo | CY55: hypo | CZ55: hypo | DA55: hypo | EH55: 0.3915564202 | EI55: 0.1035074627 | EJ55: 0.7773934426
A56: 47 | B56: 0 | C56: 5 | D56: 0.875 | F56: 0.041754 | G56: 89.91 | H56: 120.3 | I56: 60 | J56: 28.333 | K56: 8 | L56: 3 | M56: 2 | O56: 10.78554241 | AR56: 54 | AS56: 25450 | AT56: 25929 | AU56: k25450:k25929 | AV56: 0 | AW56: 0 | AX56: 0 | AY56: 0 | AZ56: 0 | BA56: 0 | BB56: 0 | BC56: 0 | BD56: 0 | BE56: 0 | BF56: 0 | BH56: 47 | BI56: =SUM(BM$10:$BM56) -> 92303 | BJ56: 35429 | BK56: 0 | BL56: 0 | BM56: 0 | BS56: =SUM($BW$10:BW56)/BH56 -> 4.319148936 | BT56: =SUM($BW27:BW56)/30 -> 2.266666667 | BU56: 0 | BV56: 0 | BW56: 0 | BX56: Ok | BY56: Abnormal | BZ56: Abnormal | CA56: Abnormal | CB56: Abnormal | CC56: 4.5 | CD56: 0 | CE56: 0 | CF56: 0 | CG56: 0 | CH56: 117833.617 | CI56: 35429 | CJ56: 0 | CK56: 0 | CL56: 0 | CM56: low | CN56: hypo | CO56: hypo | CP56: hypo | CQ56: hypo | CW56: normal | CX56: hypo | CY56: hypo | CZ56: hypo | DA56: hypo | EH56: 0.349844358 | EI56: 0.102238806 | EJ56: 0.7677622951
A57: 48 | B57: 0 | C57: 6 | D57: 0 | F57: 0.041101 | G57: 89.91 | H57: 120.3 | I57: 57.824 | J57: 29.176 | K57: 8 | L57: 3 | M57: 2 | O57: 0.843 | AR57: 55 | AS57: 25930 | AT57: 26409 | AU57: k25930:k26409 | AV57: 0 | AW57: 0 | AX57: 0 | AY57: 0 | AZ57: 0 | BA57: 0 | BB57: 0 | BC57: 0 | BD57: 0 | BE57: 0 | BF57: 0 | BH57: 48 | BI57: =SUM(BM$10:$BM57) -> 92303 | BJ57: 30165 | BK57: 0 | BL57: 0 | BM57: 0 | BS57: =SUM($BW$10:BW57)/BH57 -> 4.229166667 | BT57: =SUM($BW28:BW57)/30 -> 1.966666667 | BU57: 0 | BV57: 0 | BW57: 0 | BX57: Ok | BY57: Abnormal | BZ57: Abnormal | CA57: Abnormal | CB57: Abnormal | CC57: 4.5 | CD57: 0 | CE57: 0 | CF57: 0 | CG57: 0 | CH57: 115378.75 | CI57: 30165 | CJ57: 0 | CK57: 0 | CL57: 0 | CM57: low | CN57: hypo | CO57: hypo | CP57: hypo | CQ57: hypo | CW57: normal | CX57: hypo | CY57: hypo | CZ57: hypo | DA57: hypo | EH57: 0.349844358 | EI57: 0.102238806 | EJ57: 0.760852459
A58: 49 | B58: 0 | C58: 6 | D58: 0.125 | F58: 0.035605 | G58: 87.987 | H58: 120.92 | I58: 62.167 | J58: 31.5 | K58: 8 | L58: 3 | M58: 2 | O58: 3.079497524 | AR58: 56 | AS58: 26410 | AT58: 26889 | AU58: k26410:k26889 | AV58: 0 | AW58: 0 | AX58: 0 | AY58: 0 | AZ58: 0 | BA58: 0 | BB58: 0 | BC58: 0 | BD58: 0 | BE58: 0 | BF58: 0 | BH58: 49 | BI58: =SUM(BM$10:$BM58) -> 92303 | BJ58: 24486 | BK58: 0 | BL58: 0 | BM58: 0 | BS58: =SUM($BW$10:BW58)/BH58 -> 4.142857143 | BT58: =SUM($BW29:BW58)/30 -> 1.666666667 | BU58: 0 | BV58: 0 | BW58: 0 | BX58: Ok | BY58: Abnormal | BZ58: Abnormal | CA58: Abnormal | CB58: Abnormal | CC58: 4.5 | CD58: 0 | CE58: 0 | CF58: 0 | CG58: 0 | CH58: 113024.0816 | CI58: 24486 | CJ58: 0 | CK58: 0 | CL58: 0 | CM58: low | CN58: hypo | CO58: hypo | CP58: hypo | CQ58: hypo | CW58: normal | CX58: hypo | CY58: hypo | CZ58: hypo | DA58: hypo | EH58: 0.3423618677 | EI58: 0.0976119403 | EJ58: 0.7418032787
A59: 50 | B59: 0 | C59: 6 | D59: 0.25 | F59: 0.042196 | G59: 80.579 | H59: 114.46 | I59: 53 | J59: 24.231 | K59: 7 | L59: 3 | M59: 1 | O59: 12.22491002 | AR59: 57 | AS59: 26890 | AT59: 27369 | AU59: k26890:k27369 | AV59: 0 | AW59: 0 | AX59: 0 | AY59: 0 | AZ59: 0 | BA59: 0 | BB59: 0 | BC59: 0 | BD59: 0 | BE59: 0 | BF59: 0 | BH59: 50 | BI59: =SUM(BM$10:$BM59) -> 92303 | BJ59: 20384 | BK59: 0 | BL59: 0 | BM59: 0 | BS59: =SUM($BW$10:BW59)/BH59 -> 4.06 | BT59: =SUM($BW30:BW59)/30 -> 1.366666667 | BU59: 0 | BV59: 0 | BW59: 0 | BX59: Ok | BY59: Abnormal | BZ59: Abnormal | CA59: Abnormal | CB59: Abnormal | CC59: 4.5 | CD59: 0 | CE59: 0 | CF59: 0 | CG59: 0 | CH59: 110763.6 | CI59: 20384 | CJ59: 0 | CK59: 0 | CL59: 0 | CM59: low | CN59: hypo | CO59: hypo | CP59: hypo | CQ59: hypo | CW59: normal | CX59: hypo | CY59: hypo | CZ59: hypo | DA59: hypo | EH59: 0.313536965 | EI59: 0.1458208955 | EJ59: 0.8013852459
A60: 51 | B60: 0 | C60: 6 | D60: 0.375 | F60: 0.040963 | G60: 75.85 | H60: 113.13 | I60: 50.5 | J60: 22.167 | K60: 7 | L60: 3 | M60: 1 | O60: 5.328455405 | AR60: 58 | AS60: 27370 | AT60: 27849 | AU60: k27370:k27849 | AV60: 0 | AW60: 0 | AX60: 0 | AY60: 0 | AZ60: 0 | BA60: 0 | BB60: 0 | BC60: 0 | BD60: 0 | BE60: 0 | BF60: 0 | BH60: 51 | BI60: =SUM(BM$10:$BM60) -> 92303 | BJ60: 17049 | BK60: 0 | BL60: 0 | BM60: 0 | BS60: =SUM($BW$10:BW60)/BH60 -> 3.980392157 | BT60: =SUM($BW31:BW60)/30 -> 1.133333333 | BU60: 0 | BV60: 0 | BW60: 0 | BX60: Unhealthy | BY60: Abnormal | BZ60: Abnormal | CA60: Abnormal | CB60: Abnormal | CC60: 3 | CD60: 0 | CE60: 0 | CF60: 0 | CG60: 0 | CH60: 108591.7647 | CI60: 17049 | CJ60: 0 | CK60: 0 | CL60: 0 | CM60: low | CN60: hypo | CO60: hypo | CP60: hypo | CQ60: hypo | CW60: low | CX60: hypo | CY60: hypo | CZ60: hypo | DA60: hypo | EH60: 0.2951361868 | EI60: 0.1557462687 | EJ60: 0.8183032787
A61: 52 | B61: 0 | C61: 6 | D61: 0.5 | F61: 0.037469 | G61: 75.85 | H61: 113.13 | I61: 49.5 | J61: 18.2 | K61: 7 | L61: 3 | M61: 1 | O61: 3.967 | AR61: 59 | AS61: 27850 | AT61: 28329 | AU61: k27850:k28329 | AV61: 0 | AW61: 0 | AX61: 0 | AY61: 0 | AZ61: 0 | BA61: 0 | BB61: 0 | BC61: 0 | BD61: 0 | BE61: 0 | BF61: 0 | BH61: 52 | BI61: =SUM(BM$10:$BM61) -> 92303 | BJ61: 13067 | BK61: 0 | BL61: 0 | BM61: 0 | BS61: =SUM($BW$10:BW61)/BH61 -> 3.903846154 | BT61: =SUM($BW32:BW61)/30 -> 0.8333333333 | BU61: 0 | BV61: 0 | BW61: 0 | BX61: Unhealthy | BY61: Abnormal | BZ61: Abnormal | CA61: Abnormal | CB61: Abnormal | CC61: 3 | CD61: 0 | CE61: 0 | CF61: 0 | CG61: 0 | CH61: 106503.4615 | CI61: 13067 | CJ61: 0 | CK61: 0 | CL61: 0 | CM61: low | CN61: hypo | CO61: hypo | CP61: hypo | CQ61: hypo | CW61: low | CX61: hypo | CY61: hypo | CZ61: hypo | DA61: hypo | EH61: 0.2951361868 | EI61: 0.1557462687 | EJ61: 0.8508196721
A62: 53 | B62: 0 | C62: 6 | D62: 0.625 | F62: 0.036551 | G62: 74.286 | H62: 110.18 | I62: 46.778 | J62: 16.278 | K62: 7 | L62: 3 | M62: 1 | O62: 3.852619888 | AR62: 60 | AS62: 28330 | AT62: 28809 | AU62: k28330:k28809 | AV62: 0 | AW62: 0 | AX62: 0 | AY62: 0 | AZ62: 0 | BA62: 0 | BB62: 0 | BC62: 0 | BD62: 0 | BE62: 0 | BF62: 0 | BH62: 53 | BI62: =SUM(BM$10:$BM62) -> 92303 | BJ62: 8877 | BK62: 0 | BL62: 0 | BM62: 0 | BS62: =SUM($BW$10:BW62)/BH62 -> 3.830188679 | BT62: =SUM($BW33:BW62)/30 -> 0.6 | BU62: 0 | BV62: 0 | BW62: 0 | BX62: Unhealthy | BY62: Abnormal | BZ62: Abnormal | CA62: Abnormal | CB62: Abnormal | CC62: 3 | CD62: 0 | CE62: 0 | CF62: 0 | CG62: 0 | CH62: 104493.9623 | CI62: 8877 | CJ62: 0 | CK62: 0 | CL62: 0 | CM62: low | CN62: hypo | CO62: hypo | CP62: hypo | CQ62: hypo | CW62: low | CX62: hypo | CY62: hypo | CZ62: hypo | DA62: hypo | EH62: 0.2890505837 | EI62: 0.177761194 | EJ62: 0.8665737705
A63: 54 | B63: 0 | C63: 6 | D63: 0.75 | F63: 0.043079 | G63: 68.452 | H63: 107.55 | I63: 44.357 | J63: 13.571 | K63: 7 | L63: 3 | M63: 1 | O63: 6.948403054 | BH63: 54 | BI63: =SUM(BM$10:$BM63) -> 92303 | BJ63: 4383 | BK63: 0 | BL63: 0 | BM63: 0 | BS63: =SUM($BW$10:BW63)/BH63 -> 3.759259259 | BT63: =SUM($BW34:BW63)/30 -> 0.3 | BU63: 0 | BV63: 0 | BW63: 0 | BX63: Unhealthy | BY63: Abnormal | BZ63: Abnormal | CA63: Abnormal | CB63: Abnormal | CC63: 3 | CD63: 0 | CE63: 0 | CF63: 0 | CG63: 0 | CH63: 102558.8889 | CI63: 4383 | CJ63: 0 | CK63: 0 | CL63: 0 | CM63: low | CN63: hypo | CO63: hypo | CP63: hypo | CQ63: hypo | CW63: low | CX63: hypo | CY63: hypo | CZ63: hypo | DA63: hypo | EH63: 0.2663501946 | EI63: 0.1973880597 | EJ63: 0.8887622951
A64: 55 | B64: 0 | C64: 6 | D64: 0.875 | F64: 0.035041 | G64: 68.452 | H64: 107.55 | I64: 40.5 | J64: 13.5 | K64: 7 | L64: 3 | M64: 1 | O64: 0.071 | BH64: 55 | BI64: =SUM(BM$10:$BM64) -> 92303 | BJ64: 103 | BK64: 0 | BL64: 0 | BM64: 0 | BS64: =SUM($BW$10:BW64)/BH64 -> 3.690909091 | BT64: =SUM($BW35:BW64)/30 -> 0 | BU64: 0 | BV64: 0 | BW64: 0 | BX64: Unhealthy | BY64: Abnormal | BZ64: Abnormal | CA64: Abnormal | CB64: Abnormal | CC64: 3 | CD64: 0 | CE64: 0 | CF64: 0 | CG64: 0 | CH64: 100694.1818 | CI64: 103 | CJ64: 0 | CK64: 0 | CL64: 0 | CM64: low | CN64: hypo | CO64: hypo | CP64: hypo | CQ64: hypo | CW64: low | CX64: hypo | CY64: hypo | CZ64: hypo | DA64: hypo | EH64: 0.2663501946 | EI64: 0.1973880597 | EJ64: 0.8893442623
A65: 56 | B65: 0 | C65: 7 | D65: 0 | F65: 0.030926 | G65: 63.544 | H65: 105.05 | I65: 35 | J65: 12.125 | K65: 7 | L65: 3 | M65: 1 | O65: 5.677066936 | BH65: 56 | BI65: =SUM(BM$10:$BM65) -> 92303 | BJ65: 0 | BK65: 0 | BL65: 0 | BM65: 0 | BS65: =SUM($BW$10:BW65)/BH65 -> 3.625 | BT65: =SUM($BW36:BW65)/30 -> 0 | BU65: 0 | BV65: 0 | BW65: 0 | BX65: Abnormal | BY65: Abnormal | BZ65: Abnormal | CA65: Abnormal | CB65: Abnormal | CC65: 1.5 | CD65: 0 | CE65: 0 | CF65: 0 | CG65: 0 | CH65: 98896.07143 | CI65: 0 | CJ65: 0 | CK65: 0 | CL65: 0 | CM65: hypo | CN65: hypo | CO65: hypo | CP65: hypo | CQ65: hypo | CW65: low | CX65: hypo | CY65: hypo | CZ65: hypo | DA65: hypo | EH65: 0.2472529183 | EI65: 0.2160447761 | EJ65: 0.9006147541
A66: 57 | B66: 0 | C66: 7 | D66: 0.125 | F66: 0.038568 | G66: 51.933 | H66: 101.92 | I66: 30.417 | J66: 11.333 | K66: 7 | L66: 3 | M66: 1 | O66: 12.05153455 | BH66: 57 | BI66: =SUM(BM$10:$BM66) -> 92303 | BJ66: 0 | BK66: 0 | BL66: 0 | BM66: 0 | BS66: =SUM($BW$10:BW66)/BH66 -> 3.561403509 | BT66: =SUM($BW37:BW66)/30 -> 0 | BU66: 0 | BV66: 0 | BW66: 0 | BX66: Abnormal | BY66: Abnormal | BZ66: Abnormal | CA66: Abnormal | CB66: Abnormal | CC66: 1.5 | CD66: 0 | CE66: 0 | CF66: 0 | CG66: 0 | CH66: 97161.05263 | CI66: 0 | CJ66: 0 | CK66: 0 | CL66: 0 | CM66: hypo | CN66: hypo | CO66: hypo | CP66: hypo | CQ66: hypo | CW66: low | CX66: hypo | CY66: hypo | CZ66: hypo | DA66: hypo | EH66: 0.20207393 | EI66: 0.2394029851 | EJ66: 0.9071065574
A67: 58 | B67: 0 | C67: 7 | D67: 0.25 | F67: 0.045244 | G67: 51.933 | H67: 101.92 | I67: 30.417 | J67: 11.333 | K67: 7 | L67: 3 | M67: 1 | O67: 0 | BH67: 58 | BI67: =SUM(BM$10:$BM67) -> 92303 | BJ67: 0 | BK67: 0 | BL67: 0 | BM67: 0 | BS67: =SUM($BW$10:BW67)/BH67 -> 3.5 | BT67: =SUM($BW38:BW67)/30 -> 0 | BU67: 0 | BV67: 0 | BW67: 0 | BX67: Abnormal | BY67: Abnormal | BZ67: Abnormal | CA67: Abnormal | CB67: Abnormal | CC67: 1.5 | CD67: 0 | CE67: 0 | CF67: 0 | CG67: 0 | CH67: 95485.86207 | CI67: 0 | CJ67: 0 | CK67: 0 | CL67: 0 | CM67: hypo | CN67: hypo | CO67: hypo | CP67: hypo | CQ67: hypo | CW67: low | CX67: hypo | CY67: hypo | CZ67: hypo | DA67: hypo | EH67: 0.20207393 | EI67: 0.2394029851 | EJ67: 0.9071065574
A68: 59 | B68: 0 | C68: 7 | D68: 0.375 | F68: 0.038234 | G68: 47.717 | H68: 101.58 | I68: 25.706 | J68: 11.176 | K68: 7 | L68: 3 | M68: 1 | O68: 4.232600265 | BH68: 59 | BI68: =SUM(BM$10:$BM68) -> 92303 | BJ68: 0 | BK68: 0 | BL68: 0 | BM68: 0 | BS68: =SUM($BW$10:BW68)/BH68 -> 3.440677966 | BT68: =SUM($BW39:BW68)/30 -> 0 | BU68: 0 | BV68: 0 | BW68: 0 | BX68: Abnormal | BY68: Abnormal | BZ68: Abnormal | CA68: Abnormal | CB68: Abnormal | CC68: 1.5 | CD68: 0 | CE68: 0 | CF68: 0 | CG68: 0 | CH68: 93867.45763 | CI68: 0 | CJ68: 0 | CK68: 0 | CL68: 0 | CM68: hypo | CN68: hypo | CO68: hypo | CP68: hypo | CQ68: hypo | CW68: low | CX68: hypo | CY68: hypo | CZ68: hypo | DA68: hypo | EH68: 0.1856692607 | EI68: 0.2419402985 | EJ68: 0.9083934426
A69: 60 | B69: 0 | C69: 7 | D69: 0.5 | F69: 0.038162 | G69: 39.73 | H69: 99.746 | I69: 21.529 | J69: 13.353 | K69: 7 | L69: 3 | M69: 1 | O69: 8.479095117 | BH69: 60 | BI69: =SUM(BM$10:$BM69) -> 92303 | BJ69: 0 | BK69: 0 | BL69: 0 | BM69: 0 | BS69: =SUM($BW$10:BW69)/BH69 -> 3.383333333 | BT69: =SUM($BW40:BW69)/30 -> 0 | BU69: 0 | BV69: 0 | BW69: 0 | BX69: Abnormal | BY69: Abnormal | BZ69: Abnormal | CA69: Abnormal | CB69: Abnormal | CC69: 1.5 | CD69: 0 | CE69: 0 | CF69: 0 | CG69: 0 | CH69: 92303 | CI69: 0 | CJ69: 0 | CK69: 0 | CL69: 0 | CM69: hypo | CN69: hypo | CO69: hypo | CP69: hypo | CQ69: hypo | CW69: low | CX69: hypo | CY69: hypo | CZ69: hypo | DA69: hypo | EH69: 0.1545914397 | EI69: 0.2556268657 | EJ69: 0.8905491803
A70: 61 | B70: 0 | C70: 7 | D70: 0.625 | F70: 0.041971 | G70: 32.561 | H70: 98.227 | I70: 16.857 | J70: 15 | K70: 7 | L70: 3 | M70: 1 | O70: 7.510960724 | EH70: 0.1266964981 | EI70: 0.2669626866 | EJ70: 0.8770491803
A71: 62 | B71: 0 | C71: 7 | D71: 0.75 | F71: 0.039628 | G71: 32.561 | H71: 98.227 | I71: 14.5 | J71: 16.5 | K71: 7 | L71: 3 | M71: 1 | O71: 1.5 | EH71: 0.1266964981 | EI71: 0.2669626866 | EJ71: 0.8647540984
A72: 63 | B72: 0 | C72: 7 | D72: 0.875 | F72: 0.033094 | G72: 28.2 | H72: 97.56 | I72: 11.421 | J72: 20.263 | K72: 7 | L72: 3 | M72: 1 | O72: 5.798566978 | EH72: 0.1097276265 | EI72: 0.2719402985 | EJ72: 0.8339098361
A73: 64 | B73: 0 | C73: 8 | D73: 0 | F73: 0.043067 | G73: 10.8 | H73: 94.825 | I73: 10.188 | J73: 26.188 | K73: 7 | L73: 3 | M73: 1 | O73: 18.58348326 | EH73: 0.0420233463 | EI73: 0.2923507463 | EJ73: 0.7853442623
A74: 65 | B74: 0 | C74: 8 | D74: 0.125 | F74: 0.041328 | G74: 10.8 | H74: 94.825 | I74: 9.8333 | J74: 31.333 | K74: 7 | L74: 3 | M74: 1 | O74: 5.145 | EH74: 0.0420233463 | EI74: 0.2923507463 | EJ74: 0.7431721311
A75: =A74+1 -> 66 | B75: =ROUNDDOWN(A75/480,0) -> 0 | C75: =MOD(ROUNDDOWN(A75/8,0),60) -> 8 | D75: =MOD(A75,8)/8 -> 0.25 | F75: 0.031718 | G75: 10.511 | H75: 94.191 | I75: 10.182 | J75: 34.545 | K75: =SUMPRODUCT(--($T$1:$T$9=L75),--($U$1:$U$9=M75),$V$1:$V$9)*SUMPRODUCT(--((G75+H75)>0)) -> 7 | L75: =MATCH(H75,$R$3:$R$6,1) -> 3 | M75: =MATCH(G75,$N$7:$Q$7,1) -> 1 | O75: =SQRT((G75-G74)^2+(H75-H74)^2+(J75-J74)^2) -> 3.286703668 | EH75: =G75/Q$7 -> 0.04089883268 | EI75: =(R$6-H75)/R$6 -> 0.2970820896 | EJ75: =(J$3/2-J75)/(J$3/2) -> 0.7168442623
A76: 67 | B76: 0 | C76: 8 | D76: 0.375 | F76: 0.04403 | G76: 10.511 | H76: 94.191 | I76: 6.4545 | J76: 42.182 | K76: 7 | L76: 3 | M76: 1 | O76: 7.637 | EH76: 0.04089883268 | EI76: 0.2970820896 | EJ76: 0.6542459016
A77: 68 | B77: 0 | C77: 8 | D77: 0.5 | F77: 0.042772 | G77: 15.289 | H77: 92.553 | I77: 6.3 | J77: 48.4 | K77: 7 | L77: 3 | M77: 1 | O77: 8.010983211 | EH77: 0.05949027237 | EI77: 0.3093059701 | EJ77: 0.6032786885
A78: 69 | B78: 0 | C78: 8 | D78: 0.625 | F78: 0.039432 | G78: 15.289 | H78: 92.553 | I78: 6.3 | J78: 48.4 | K78: 7 | L78: 3 | M78: 1 | O78: 0 | EH78: 0.05949027237 | EI78: 0.3093059701 | EJ78: 0.6032786885
A79: 70 | B79: 0 | C79: 8 | D79: 0.75 | F79: 0.035131 | G79: 17.667 | H79: 90.944 | I79: 11.053 | J79: 55.368 | K79: 7 | L79: 3 | M79: 1 | O79: 7.536364442 | EH79: 0.06874319066 | EI79: 0.3213134328 | EJ79: 0.5461639344
A80: 71 | B80: 0 | C80: 8 | D80: 0.875 | F80: 0.03636 | G80: 18.52 | H80: 88.76 | I80: 12.056 | J80: 61.5 | K80: 4 | L80: 2 | M80: 1 | O80: 6.56497441 | EH80: 0.07206225681 | EI80: 0.3376119403 | EJ80: 0.4959016393
A81: 72 | B81: 0 | C81: 9 | D81: 0 | F81: 0.041923 | G81: 18.52 | H81: 88.76 | I81: 10.273 | J81: 65.727 | K81: 4 | L81: 2 | M81: 1 | O81: 4.227 | EH81: 0.07206225681 | EI81: 0.3376119403 | EJ81: 0.4612540984
A82: 73 | B82: 0 | C82: 9 | D82: 0.125 | F82: 0.042391 | G82: 14.744 | H82: 86.419 | I82: 10.85 | J82: 71.05 | K82: 4 | L82: 2 | M82: 1 | O82: 6.933454118 | EH82: 0.05736964981 | EI82: 0.3550820896 | EJ82: 0.4176229508
A83: 74 | B83: 0 | C83: 9 | D83: 0.25 | F83: 0.033423 | G83: 14.744 | H83: 86.419 | I83: 11.353 | J83: 77.176 | K83: 4 | L83: 2 | M83: 1 | O83: 6.126 | EH83: 0.05736964981 | EI83: 0.3550820896 | EJ83: 0.3674098361
A84: 75 | B84: 0 | C84: 9 | D84: 0.375 | F84: 0.042396 | G84: 14.744 | H84: 86.419 | I84: 12.563 | J84: 82.75 | K84: 4 | L84: 2 | M84: 1 | O84: 5.574 | EH84: 0.05736964981 | EI84: 0.3550820896 | EJ84: 0.3217213115
A85: 76 | B85: 0 | C85: 9 | D85: 0.5 | F85: 0.043566 | G85: 14.744 | H85: 86.419 | I85: 13.188 | J85: 88.25 | K85: 4 | L85: 2 | M85: 1 | O85: 5.5 | EH85: 0.05736964981 | EI85: 0.3550820896 | EJ85: 0.2766393443
A86: 77 | B86: 0 | C86: 9 | D86: 0.625 | F86: 0.037339 | G86: 15.25 | H86: 86.188 | I86: 10.429 | J86: 91.786 | K86: 4 | L86: 2 | M86: 1 | O86: 3.579482225 | EH86: 0.0593385214 | EI86: 0.3568059701 | EJ86: 0.2476557377
A87: 78 | B87: 0 | C87: 9 | D87: 0.75 | F87: 0.035274 | G87: 15.25 | H87: 86.188 | I87: 8.8947 | J87: 95.579 | K87: 4 | L87: 2 | M87: 1 | O87: 3.793 | EH87: 0.0593385214 | EI87: 0.3568059701 | EJ87: 0.2165655738
A88: 79 | B88: 0 | C88: 9 | D88: 0.875 | F88: 0.041288 | G88: 10.694 | H88: 88.548 | I88: 10.533 | J88: 99.467 | K88: 4 | L88: 2 | M88: 1 | O88: 6.437645532 | EH88: 0.04161089494 | EI88: 0.3391940299 | EJ88: 0.1846967213
A89: 80 | B89: 0 | C89: 10 | D89: 0 | F89: 0.032104 | G89: 13 | H89: 93.5 | I89: 13.6 | J89: 102.93 | K89: 7 | L89: 3 | M89: 1 | O89: 6.467790117 | EH89: 0.05058365759 | EI89: 0.302238806 | EJ89: 0.1563114754
A90: 81 | B90: 0 | C90: 10 | D90: 0.125 | F90: 0.041452 | G90: 13 | H90: 93.5 | I90: 15.938 | J90: 106.5 | K90: 7 | L90: 3 | M90: 1 | O90: 3.57 | EH90: 0.05058365759 | EI90: 0.302238806 | EJ90: 0.1270491803
A91: 82 | B91: 0 | C91: 10 | D91: 0.25 | F91: 0.039971 | G91: 14.768 | H91: 94.964 | I91: 17.875 | J91: 108.63 | K91: 7 | L91: 3 | M91: 1 | O91: 3.13145653 | EH91: 0.05746303502 | EI91: 0.2913134328 | EJ91: 0.1095901639
A92: 83 | B92: 0 | C92: 10 | D92: 0.375 | F92: 0.038025 | G92: 21.896 | H92: 100.31 | I92: 20.444 | J92: 109.89 | K92: 7 | L92: 3 | M92: 1 | O92: 8.998649899 | EH92: 0.08519844358 | EI92: 0.2514179104 | EJ92: 0.09926229508
A93: 84 | B93: 0 | C93: 10 | D93: 0.5 | F93: 0.042342 | G93: 27.18 | H93: 103.2 | I93: 23.083 | J93: 110.17 | K93: 7 | L93: 3 | M93: 1 | O93: 6.029191986 | EH93: 0.1057587549 | EI93: 0.2298507463 | EJ93: 0.09696721311
A94: 85 | B94: 0 | C94: 10 | D94: 0.625 | F94: 0.041685 | G94: 27.18 | H94: 103.2 | I94: 26.938 | J94: 110.06 | K94: 7 | L94: 3 | M94: 1 | O94: 0.11 | EH94: 0.1057587549 | EI94: 0.2298507463 | EJ94: 0.09786885246
A95: 86 | B95: 0 | C95: 10 | D95: 0.75 | F95: 0.042371 | G95: 32.568 | H95: 107.11 | I95: 31.583 | J95: 109.83 | K95: 7 | L95: 3 | M95: 1 | O95: 6.661196889 | EH95: 0.1267237354 | EI95: 0.2006716418 | EJ95: 0.09975409836
A96: 87 | B96: 0 | C96: 10 | D96: 0.875 | F96: 0.040162 | G96: 41.891 | H96: 109.75 | I96: 35.083 | J96: 109.58 | K96: 7 | L96: 3 | M96: 1 | O96: 9.692802949 | EH96: 0.163 | EI96: 0.1809701493 | EJ96: 0.1018032787
A97: 88 | B97: 0 | C97: 11 | D97: 0 | F97: 0.041295 | G97: 41.891 | H97: 109.75 | I97: 37.923 | J97: 109.46 | K97: 7 | L97: 3 | M97: 1 | O97: 0.12 | EH97: 0.163 | EI97: 0.1809701493 | EJ97: 0.1027868852
A98: 89 | B98: 0 | C98: 11 | D98: 0.125 | F98: 0.039055 | G98: 43.548 | H98: 111.3 | I98: 42 | J98: 110 | K98: 7 | L98: 3 | M98: 1 | O98: 2.33232695 | EH98: 0.1694474708 | EI98: 0.1694029851 | EJ98: 0.09836065574
A99: 90 | B99: 0 | C99: 11 | D99: 0.25 | F99: 0.038697 | G99: 53.611 | H99: 115.75 | I99: 43.222 | J99: 108.56 | K99: 7 | L99: 3 | M99: 1 | O99: 11.09684951 | EH99: 0.2086031128 | EI99: 0.1361940299 | EJ99: 0.1101639344
A100: 91 | B100: 0 | C100: 11 | D100: 0.375 | F100: 0.043412 | G100: 58.085 | H100: 119.31 | I100: 43.5 | J100: 106 | K100: 7 | L100: 3 | M100: 1 | O100: 6.264493276 | EH100: 0.2260116732 | EI100: 0.1096268657 | EJ100: 0.131147541
A101: 92 | B101: 0 | C101: 11 | D101: 0.5 | F101: 0.0415 | G101: 58.085 | H101: 119.31 | I101: 46.667 | J101: 102.89 | K101: 7 | L101: 3 | M101: 1 | O101: 3.11 | EH101: 0.2260116732 | EI101: 0.1096268657 | EJ101: 0.1566393443
A102: 93 | B102: 0 | C102: 11 | D102: 0.625 | F102: 0.037245 | G102: 60.529 | H102: 120.21 | I102: 45.75 | J102: 100.63 | K102: 7 | L102: 3 | M102: 1 | O102: 3.448294651 | EH102: 0.2355214008 | EI102: 0.1029104478 | EJ102: 0.1751639344
A103: 94 | B103: 0 | C103: 11 | D103: 0.75 | F103: 0.035722 | G103: 62.106 | H103: 116.23 | I103: 46.75 | J103: 100.63 | K103: 7 | L103: 3 | M103: 1 | O103: 4.28104298 | EH103: 0.2416575875 | EI103: 0.1326119403 | EJ103: 0.1751639344
A104: 95 | B104: 0 | C104: 11 | D104: 0.875 | F104: 0.042755 | G104: 62.106 | H104: 116.23 | I104: 45.75 | J104: 99 | K104: 7 | L104: 3 | M104: 1 | O104: 1.63 | EH104: 0.2416575875 | EI104: 0.1326119403 | EJ104: 0.1885245902
A105: 96 | B105: 0 | C105: 12 | D105: 0 | F105: 0.039492 | G105: 63.814 | H105: 115.9 | I105: 46.2 | J105: 97.4 | K105: 7 | L105: 3 | M105: 1 | O105: 2.363506717 | EH105: 0.2483035019 | EI105: 0.1350746269 | EJ105: 0.2016393443
A106: 97 | B106: 0 | C106: 12 | D106: 0.125 | F106: 0.036055 | G106: 64.642 | H106: 119.15 | I106: 47.167 | J106: 96.667 | K106: 7 | L106: 3 | M106: 1 | O106: 3.432983105 | EH106: 0.2515252918 | EI106: 0.1108208955 | EJ106: 0.207647541
A107: 98 | B107: 0 | C107: 12 | D107: 0.25 | F107: 0.042938 | G107: 64.642 | H107: 119.15 | I107: 48.333 | J107: 97 | K107: 7 | L107: 3 | M107: 1 | O107: 0.333 | EH107: 0.2515252918 | EI107: 0.1108208955 | EJ107: 0.2049180328
A108: 99 | B108: 0 | C108: 12 | D108: 0.375 | F108: 0.035349 | G108: 66.698 | H108: 119.79 | I108: 46.429 | J108: 95.286 | K108: 7 | L108: 3 | M108: 1 | O108: 2.752186767 | EH108: 0.2595252918 | EI108: 0.1060447761 | EJ108: 0.2189672131
A109: 100 | B109: 0 | C109: 12 | D109: 0.5 | F109: 0.040809 | G109: 63.974 | H109: 125.61 | I109: 44.429 | J109: 95.286 | K109: 7 | L109: 3 | M109: 1 | O109: 6.425929972 | EH109: 0.24892607 | EI109: 0.0626119403 | EJ109: 0.2189672131
A110: 101 | B110: 0 | C110: 12 | D110: 0.625 | F110: 0.040603 | G110: 63.805 | H110: 118.24 | I110: 45.889 | J110: 92.333 | K110: 7 | L110: 3 | M110: 1 | O110: 7.941389677 | EH110: 0.2482684825 | EI110: 0.1176119403 | EJ110: 0.2431721311
A111: 102 | B111: 0 | C111: 12 | D111: 0.75 | F111: 0.036721 | G111: 63.805 | H111: 118.24 | I111: 43.222 | J111: 91.111 | K111: 7 | L111: 3 | M111: 1 | O111: 1.222 | EH111: 0.2482684825 | EI111: 0.1176119403 | EJ111: 0.2531885246
A112: 103 | B112: 0 | C112: 12 | D112: 0.875 | F112: 0.040675 | G112: 60.545 | H112: 118.12 | I112: 41.455 | J112: 90.364 | K112: 7 | L112: 3 | M112: 1 | O112: 3.346641451 | EH112: 0.2355836576 | EI112: 0.1185074627 | EJ112: 0.2593114754
A113: 104 | B113: 0 | C113: 13 | D113: 0 | F113: 0.032612 | G113: 52.45 | H113: 118.63 | I113: 37.889 | J113: 91.611 | K113: 7 | L113: 3 | M113: 1 | O113: 8.206347178 | EH113: 0.2040856031 | EI113: 0.1147014925 | EJ113: 0.2490901639
A114: 105 | B114: 0 | C114: 13 | D114: 0.125 | F114: 0.043379 | G114: 52.45 | H114: 118.63 | I114: 31.95 | J114: 90.75 | K114: 7 | L114: 3 | M114: 1 | O114: 0.861 | EH114: 0.2040856031 | EI114: 0.1147014925 | EJ114: 0.256147541
A115: 106 | B115: 0 | C115: 13 | D115: 0.25 | F115: 0.038874 | G115: 44.845 | H115: 115.78 | I115: 26.615 | J115: 91 | K115: 7 | L115: 3 | M115: 1 | O115: 8.125332301 | EH115: 0.1744941634 | EI115: 0.1359701493 | EJ115: 0.2540983607
A116: 107 | B116: 0 | C116: 13 | D116: 0.375 | F116: 0.043243 | G116: 33.087 | H116: 115.78 | I116: 23.25 | J116: 90.5 | K116: 7 | L116: 3 | M116: 1 | O116: 11.76862626 | EH116: 0.1287431907 | EI116: 0.1359701493 | EJ116: 0.2581967213
A117: 108 | B117: 0 | C117: 13 | D117: 0.5 | F117: 0.040909 | G117: 26.455 | H117: 115.36 | I117: 20 | J117: 85.778 | K117: 7 | L117: 3 | M117: 1 | O117: 8.152122914 | EH117: 0.1029377432 | EI117: 0.1391044776 | EJ117: 0.2969016393
A118: 109 | B118: 0 | C118: 13 | D118: 0.625 | F118: 0.033141 | G118: 26.455 | H118: 115.36 | I118: 15.688 | J118: 81.75 | K118: 7 | L118: 3 | M118: 1 | O118: 4.028 | EH118: 0.1029377432 | EI118: 0.1391044776 | EJ118: 0.3299180328
A119: 110 | B119: 0 | C119: 13 | D119: 0.75 | F119: 0.035852 | G119: 23.271 | H119: 115.43 | I119: 13 | J119: 79 | K119: 7 | L119: 3 | M119: 1 | O119: 4.2077614 | EH119: 0.09054863813 | EI119: 0.1385820896 | EJ119: 0.3524590164
A120: 111 | B120: 0 | C120: 13 | D120: 0.875 | F120: 0.041925 | G120: 23.271 | H120: 115.43 | I120: 13.722 | J120: 73.333 | K120: 7 | L120: 3 | M120: 1 | O120: 5.667 | EH120: 0.09054863813 | EI120: 0.1385820896 | EJ120: 0.3989098361
A121: 112 | B121: 0 | C121: 14 | D121: 0 | F121: 0.030796 | G121: 23.271 | H121: 115.43 | I121: 13.292 | J121: 67.458 | K121: 7 | L121: 3 | M121: 1 | O121: 5.875 | EH121: 0.09054863813 | EI121: 0.1385820896 | EJ121: 0.4470655738
A122: 113 | B122: 0 | C122: 14 | D122: 0.125 | F122: 0.036172 | G122: 20 | H122: 115 | I122: 13.429 | J122: 60.714 | K122: 7 | L122: 3 | M122: 1 | O122: 7.507721159 | EH122: 0.07782101167 | EI122: 0.1417910448 | EJ122: 0.5023442623
A123: 114 | B123: 0 | C123: 14 | D123: 0.25 | F123: 0.04016 | G123: 21.517 | H123: 116.59 | I123: 13.389 | J123: 56.111 | K123: 7 | L123: 3 | M123: 1 | O123: 5.100686032 | EH123: 0.08372373541 | EI123: 0.1299253731 | EJ123: 0.5400737705
A124: 115 | B124: 0 | C124: 14 | D124: 0.375 | F124: 0.036117 | G124: 22 | H124: 118 | I124: 13.364 | J124: 52.727 | K124: 7 | L124: 3 | M124: 1 | O124: 3.69768103 | EH124: 0.08560311284 | EI124: 0.1194029851 | EJ124: 0.5678114754
A125: 116 | B125: 0 | C125: 14 | D125: 0.5 | F125: 0.042831 | G125: 22 | H125: 118 | I125: 15.875 | J125: 45 | K125: 7 | L125: 3 | M125: 1 | O125: 7.727 | EH125: 0.08560311284 | EI125: 0.1194029851 | EJ125: 0.631147541
A126: 117 | B126: 0 | C126: 14 | D126: 0.625 | F126: 0.032388 | G126: 22.87 | H126: 118.96 | I126: 16.286 | J126: 43 | K126: 7 | L126: 3 | M126: 1 | O126: 2.382960344 | EH126: 0.08898832685 | EI126: 0.112238806 | EJ126: 0.6475409836
A127: 118 | B127: 0 | C127: 14 | D127: 0.75 | F127: 0.037649 | G127: 25.372 | H127: 120.37 | I127: 15.188 | J127: 40.5 | K127: 7 | L127: 3 | M127: 1 | O127: 3.807637588 | EH127: 0.09872373541 | EI127: 0.1017164179 | EJ127: 0.6680327869
A128: 119 | B128: 0 | C128: 14 | D128: 0.875 | F128: 0.042321 | G128: 25.372 | H128: 120.37 | I128: 15.6 | J128: 36.733 | K128: 7 | L128: 3 | M128: 1 | O128: 3.767 | EH128: 0.09872373541 | EI128: 0.1017164179 | EJ128: 0.6989098361
A129: 120 | B129: 0 | C129: 15 | D129: 0 | F129: 0.034469 | G129: 25.78 | H129: 120.54 | I129: 15.571 | J129: 32.857 | K129: 7 | L129: 3 | M129: 1 | O129: 3.901120352 | EH129: 0.100311284 | EI129: 0.1004477612 | EJ129: 0.7306803279
A130: 121 | B130: 0 | C130: 15 | D130: 0.125 | F130: 0.040334 | G130: 25.78 | H130: 120.54 | I130: 15.421 | J130: 28.368 | K130: 7 | L130: 3 | M130: 1 | O130: 4.489 | EH130: 0.100311284 | EI130: 0.1004477612 | EJ130: 0.7674754098
A131: 122 | B131: 0 | C131: 15 | D131: 0.25 | F131: 0.043297 | G131: 25.78 | H131: 120.54 | I131: 15.467 | J131: 23.6 | K131: 7 | L131: 3 | M131: 1 | O131: 4.768 | EH131: 0.100311284 | EI131: 0.1004477612 | EJ131: 0.806557377
A132: 123 | B132: 0 | C132: 15 | D132: 0.375 | F132: 0.039164 | G132: 25.78 | H132: 120.54 | I132: 15.583 | J132: 20.083 | K132: 7 | L132: 3 | M132: 1 | O132: 3.517 | EH132: 0.100311284 | EI132: 0.1004477612 | EJ132: 0.8353852459
A133: 124 | B133: 0 | C133: 15 | D133: 0.5 | F133: 0.036918 | G133: 25.78 | H133: 120.54 | I133: 15.9 | J133: 16.6 | K133: 7 | L133: 3 | M133: 1 | O133: 3.483 | EH133: 0.100311284 | EI133: 0.1004477612 | EJ133: 0.8639344262
A134: 125 | B134: 0 | C134: 15 | D134: 0.625 | F134: 0.039116 | G134: 28.233 | H134: 119.74 | I134: 16.75 | J134: 14 | K134: 7 | L134: 3 | M134: 1 | O134: 3.66295086 | EH134: 0.1098560311 | EI134: 0.1064179104 | EJ134: 0.8852459016
A135: 126 | B135: 0 | C135: 15 | D135: 0.75 | F135: 0.03765 | G135: 28.233 | H135: 119.74 | I135: 16 | J135: 12.308 | K135: 7 | L135: 3 | M135: 1 | O135: 1.692 | EH135: 0.1098560311 | EI135: 0.1064179104 | EJ135: 0.8991147541
A136: 127 | B136: 0 | C136: 15 | D136: 0.875 | F136: 0.044385 | G136: 28.233 | H136: 119.74 | I136: 16.357 | J136: 8.8571 | K136: 7 | L136: 3 | M136: 1 | O136: 3.4509 | EH136: 0.1098560311 | EI136: 0.1064179104 | EJ136: 0.9274008197
A137: 128 | B137: 0 | C137: 16 | D137: 0 | F137: 0.042217 | G137: 29.211 | H137: 117.46 | I137: 14.625 | J137: 7.625 | K137: 7 | L137: 3 | M137: 1 | O137: 2.770009821 | EH137: 0.1136614786 | EI137: 0.1234328358 | EJ137: 0.9375
A138: 129 | B138: 0 | C138: 16 | D138: 0.125 | F138: 0.03295 | G138: 29.211 | H138: 117.46 | I138: 18 | J138: 4.8889 | K138: 7 | L138: 3 | M138: 1 | O138: 2.7361 | EH138: 0.1136614786 | EI138: 0.1234328358 | EJ138: 0.9599270492
A139: =A138+1 -> 130 | B139: =ROUNDDOWN(A139/480,0) -> 0 | C139: =MOD(ROUNDDOWN(A139/8,0),60) -> 16 | D139: =MOD(A139,8)/8 -> 0.25 | F139: 0.034804 | G139: 30.951 | H139: 112.24 | I139: 20.222 | J139: 4.7778 | K139: =SUMPRODUCT(--($T$1:$T$9=L139),--($U$1:$U$9=M139),$V$1:$V$9)*SUMPRODUCT(--((G139+H139)>0)) -> 7 | L139: =MATCH(H139,$R$3:$R$6,1) -> 3 | M139: =MATCH(G139,$N$7:$Q$7,1) -> 1 | O139: =SQRT((G139-G138)^2+(H139-H138)^2+(J139-J138)^2) -> 5.503484642 | EH139: =G139/Q$7 -> 0.1204319066 | EI139: =(R$6-H139)/R$6 -> 0.1623880597 | EJ139: =(J$3/2-J139)/(J$3/2) -> 0.9608377049
A140: 131 | B140: 0 | C140: 16 | D140: 0.375 | F140: 0.042929 | G140: 32.237 | H140: 108.8 | I140: 23.294 | J140: 7.1176 | K140: 7 | L140: 3 | M140: 1 | O140: 4.354544757 | EH140: 0.1254357977 | EI140: 0.1880597015 | EJ140: 0.9416590164
A141: 132 | B141: 0 | C141: 16 | D141: 0.5 | F141: 0.04228 | G141: 41.782 | H141: 109 | I141: 28.222 | J141: 7.5556 | K141: 7 | L141: 3 | M141: 1 | O141: 9.557137071 | EH141: 0.1625758755 | EI141: 0.1865671642 | EJ141: 0.9380688525
A142: 133 | B142: 0 | C142: 16 | D142: 0.625 | F142: 0.041357 | G142: 41.782 | H142: 109 | I142: 32.111 | J142: 7.6667 | K142: 7 | L142: 3 | M142: 1 | O142: 0.1111 | EH142: 0.1625758755 | EI142: 0.1865671642 | EJ142: 0.9371581967
A143: 134 | B143: 0 | C143: 16 | D143: 0.75 | F143: 0.038272 | G143: 46.962 | H143: 109.97 | I143: 36.111 | J143: 7.6667 | K143: 7 | L143: 3 | M143: 1 | O143: 5.270037951 | EH143: 0.1827315175 | EI143: 0.1793283582 | EJ143: 0.9371581967
A144: 135 | B144: 0 | C144: 16 | D144: 0.875 | F144: 0.043336 | G144: 53.06 | H144: 112.13 | I144: 35.333 | J144: 7.8889 | K144: 7 | L144: 3 | M144: 1 | O144: 6.47306549 | EH144: 0.206459144 | EI144: 0.1632089552 | EJ144: 0.9353368852
A145: 136 | B145: 0 | C145: 17 | D145: 0 | F145: 0.033001 | G145: 53.06 | H145: 112.13 | I145: 37.714 | J145: 8 | K145: 7 | L145: 3 | M145: 1 | O145: 0.1111 | EH145: 0.206459144 | EI145: 0.1632089552 | EJ145: 0.9344262295
A146: 137 | B146: 0 | C146: 17 | D146: 0.125 | F146: 0.040066 | G146: 54.104 | H146: 113.33 | I146: 38.714 | J146: 8 | K146: 7 | L146: 3 | M146: 1 | O146: 1.590577254 | EH146: 0.2105214008 | EI146: 0.1542537313 | EJ146: 0.9344262295
A147: 138 | B147: 0 | C147: 17 | D147: 0.25 | F147: 0.035677 | G147: 60.847 | H147: 115.03 | I147: 39.733 | J147: 6.7333 | K147: 7 | L147: 3 | M147: 1 | O147: 7.068421174 | EH147: 0.2367587549 | EI147: 0.1415671642 | EJ147: 0.9448090164
A148: 139 | B148: 0 | C148: 17 | D148: 0.375 | F148: 0.040996 | G148: 60.847 | H148: 115.03 | I148: 42.286 | J148: 8.1905 | K148: 7 | L148: 3 | M148: 1 | O148: 1.4572 | EH148: 0.2367587549 | EI148: 0.1415671642 | EJ148: 0.9328647541
A149: 140 | B149: 0 | C149: 17 | D149: 0.5 | F149: 0.041012 | G149: 65.857 | H149: 115 | I149: 47.714 | J149: 8 | K149: 7 | L149: 3 | M149: 1 | O149: 5.013710228 | EH149: 0.2562529183 | EI149: 0.1417910448 | EJ149: 0.9344262295
A150: 141 | B150: 0 | C150: 17 | D150: 0.625 | F150: 0.035987 | G150: 73.548 | H150: 116.26 | I150: 50.2 | J150: 9.2 | K150: 7 | L150: 3 | M150: 1 | O150: 7.885371329 | EH150: 0.2861789883 | EI150: 0.1323880597 | EJ150: 0.9245901639
A151: 142 | B151: 0 | C151: 17 | D151: 0.75 | F151: 0.0354 | G151: 73.548 | H151: 116.26 | I151: 54.5 | J151: 8.8 | K151: 7 | L151: 3 | M151: 1 | O151: 0.4 | EH151: 0.2861789883 | EI151: 0.1323880597 | EJ151: 0.9278688525
A152: 143 | B152: 0 | C152: 17 | D152: 0.875 | F152: 0.039591 | G152: 76.372 | H152: 117.22 | I152: 53.5 | J152: 13.167 | K152: 7 | L152: 3 | M152: 1 | O152: 5.288408551 | EH152: 0.2971673152 | EI152: 0.1252238806 | EJ152: 0.8920737705
A153: 144 | B153: 0 | C153: 18 | D153: 0 | F153: 0.03726 | G153: 80.6 | H153: 119.92 | I153: 53.476 | J153: 18.429 | K153: 7 | L153: 3 | M153: 1 | O153: 7.270118844 | EH153: 0.313618677 | EI153: 0.1050746269 | EJ153: 0.848942623
A154: 145 | B154: 0 | C154: 18 | D154: 0.125 | F154: 0.040472 | G154: 79 | H154: 121.33 | I154: 53.6 | J154: 23.45 | K154: 7 | L154: 3 | M154: 1 | O154: 5.455138953 | EH154: 0.3073929961 | EI154: 0.09455223881 | EJ154: 0.8077868852
A155: 146 | B155: 0 | C155: 18 | D155: 0.25 | F155: 0.039973 | G155: 79 | H155: 121.33 | I155: 54.357 | J155: 27.571 | K155: 7 | L155: 3 | M155: 1 | O155: 4.121 | EH155: 0.3073929961 | EI155: 0.09455223881 | EJ155: 0.7740081967
A156: 147 | B156: 0 | C156: 18 | D156: 0.375 | F156: 0.037656 | G156: 80.276 | H156: 121.9 | I156: 55.333 | J156: 31.111 | K156: 7 | L156: 3 | M156: 1 | O156: 3.805873881 | EH156: 0.3123579767 | EI156: 0.09029850746 | EJ156: 0.7449918033
A157: 148 | B157: 0 | C157: 18 | D157: 0.5 | F157: 0.043471 | G157: 77.778 | H157: 117.91 | I157: 57.5 | J157: 29.8 | K157: 7 | L157: 3 | M157: 1 | O157: 4.886596464 | EH157: 0.3026381323 | EI157: 0.1200746269 | EJ157: 0.7557377049
A158: 149 | B158: 0 | C158: 18 | D158: 0.625 | F158: 0.040652 | G158: 77.778 | H158: 117.91 | I158: 60.1 | J158: 30.2 | K158: 7 | L158: 3 | M158: 1 | O158: 0.4 | EH158: 0.3026381323 | EI158: 0.1200746269 | EJ158: 0.7524590164
A159: 150 | B159: 0 | C159: 18 | D159: 0.75 | F159: 0.039654 | G159: 85.143 | H159: 115.83 | I159: 55.636 | J159: 27.182 | K159: 7 | L159: 3 | M159: 1 | O159: 8.226660866 | EH159: 0.3312957198 | EI159: 0.1355970149 | EJ159: 0.7771967213
A160: 151 | B160: 0 | C160: 18 | D160: 0.875 | F160: 0.044204 | G160: 85.143 | H160: 115.83 | I160: 57.842 | J160: 34.474 | K160: 7 | L160: 3 | M160: 1 | O160: 7.292 | EH160: 0.3312957198 | EI160: 0.1355970149 | EJ160: 0.7174262295
A161: 152 | B161: 0 | C161: 19 | D161: 0 | F161: 0.039729 | G161: 85.394 | H161: 113.58 | I161: 57.769 | J161: 39.769 | K161: 7 | L161: 3 | M161: 1 | O161: 5.758691344 | EH161: 0.3322723735 | EI161: 0.1523880597 | EJ161: 0.6740245902
A162: 153 | B162: 0 | C162: 19 | D162: 0.125 | F162: 0.033384 | G162: 83 | H162: 114.5 | I162: 57.5 | J162: 43 | K162: 7 | L162: 3 | M162: 1 | O162: 4.1251663 | EH162: 0.3229571984 | EI162: 0.1455223881 | EJ162: 0.6475409836
A163: 154 | B163: 0 | C163: 19 | D163: 0.25 | F163: 0.032375 | G163: 81.534 | H163: 114.96 | I163: 52.941 | J163: 45.412 | K163: 7 | L163: 3 | M163: 1 | O163: 2.859807686 | EH163: 0.3172529183 | EI163: 0.1420895522 | EJ163: 0.6277704918
A164: 155 | B164: 0 | C164: 19 | D164: 0.375 | F164: 0.038683 | G164: 81.534 | H164: 114.96 | I164: 49.524 | J164: 49.095 | K164: 7 | L164: 3 | M164: 1 | O164: 3.683 | EH164: 0.3172529183 | EI164: 0.1420895522 | EJ164: 0.5975819672
A165: 156 | B165: 0 | C165: 19 | D165: 0.5 | F165: 0.041945 | G165: 75.146 | H165: 115.8 | I165: 46.063 | J165: 51.813 | K165: 7 | L165: 3 | M165: 1 | O165: 6.992829756 | EH165: 0.2923968872 | EI165: 0.1358208955 | EJ165: 0.5753032787
A166: 157 | B166: 0 | C166: 19 | D166: 0.625 | F166: 0.036326 | G166: 66.892 | H166: 118.6 | I166: 41.1 | J166: 51.8 | K166: 7 | L166: 3 | M166: 1 | O166: 8.716001664 | EH166: 0.2602801556 | EI166: 0.1149253731 | EJ166: 0.5754098361
A167: 158 | B167: 0 | C167: 19 | D167: 0.75 | F167: 0.027346 | G167: 66.892 | H167: 118.6 | I167: 41.1 | J167: 51.8 | K167: 7 | L167: 3 | M167: 1 | O167: 0 | EH167: 0.2602801556 | EI167: 0.1149253731 | EJ167: 0.5754098361
A168: 159 | B168: 0 | C168: 19 | D168: 0.875 | F168: 0.023375 | G168: 60.806 | H168: 118.77 | I168: 36.08 | J168: 53.08 | K168: 7 | L168: 3 | M168: 1 | O168: 6.221470566 | EH168: 0.2365992218 | EI168: 0.1136567164 | EJ168: 0.5649180328
A169: 160 | B169: 0 | C169: 20 | D169: 0 | F169: 0.027863 | G169: 45.573 | H169: 118.29 | I169: 29.75 | J169: 53.375 | K169: 7 | L169: 3 | M169: 1 | O169: 15.24341543 | EH169: 0.1773268482 | EI169: 0.117238806 | EJ169: 0.5625
A170: 161 | B170: 0 | C170: 20 | D170: 0.125 | F170: 0.035626 | G170: 36.49 | H170: 118.1 | I170: 24.273 | J170: 50.909 | K170: 7 | L170: 3 | M170: 1 | O170: 9.413721103 | EH170: 0.1419844358 | EI170: 0.1186567164 | EJ170: 0.5827131148
A171: 162 | B171: 0 | C171: 20 | D171: 0.25 | F171: 0.036624 | G171: 36.49 | H171: 118.1 | I171: 20.167 | J171: 50.611 | K171: 7 | L171: 3 | M171: 1 | O171: 0.298 | EH171: 0.1419844358 | EI171: 0.1186567164 | EJ171: 0.5851557377
A172: 163 | B172: 0 | C172: 20 | D172: 0.375 | F172: 0.038687 | G172: 27.976 | H172: 114.17 | I172: 15.667 | J172: 44.556 | K172: 7 | L172: 3 | M172: 1 | O172: 11.16226326 | EH172: 0.1088560311 | EI172: 0.1479850746 | EJ172: 0.6347868852
A173: 164 | B173: 0 | C173: 20 | D173: 0.5 | F173: 0.03655 | G173: 26.735 | H173: 109.29 | I173: 16.778 | J173: 42.889 | K173: 7 | L173: 3 | M173: 1 | O173: 5.304089931 | EH173: 0.1040272374 | EI173: 0.1844029851 | EJ173: 0.6484508197
A174: 165 | B174: 0 | C174: 20 | D174: 0.625 | F174: 0.041536 | G174: 26.735 | H174: 109.29 | I174: 16.909 | J174: 39.727 | K174: 7 | L174: 3 | M174: 1 | O174: 3.162 | EH174: 0.1040272374 | EI174: 0.1844029851 | EJ174: 0.6743688525
A175: 166 | B175: 0 | C175: 20 | D175: 0.75 | F175: 0.038894 | G175: 27.415 | H175: 108.51 | I175: 18.286 | J175: 36.143 | K175: 7 | L175: 3 | M175: 1 | O175: 3.730396226 | EH175: 0.1066731518 | EI175: 0.1902238806 | EJ175: 0.7037459016
A176: 167 | B176: 0 | C176: 20 | D176: 0.875 | F176: 0.036535 | G176: 27.415 | H176: 108.51 | I176: 18 | J176: 34.6 | K176: 7 | L176: 3 | M176: 1 | O176: 1.543 | EH176: 0.1066731518 | EI176: 0.1902238806 | EJ176: 0.7163934426
A177: 168 | B177: 0 | C177: 21 | D177: 0 | F177: 0.041232 | G177: 29.691 | H177: 107.71 | I177: 19.615 | J177: 30.154 | K177: 7 | L177: 3 | M177: 1 | O177: 5.058368512 | EH177: 0.1155291829 | EI177: 0.1961940299 | EJ177: 0.7528360656
A178: 169 | B178: 0 | C178: 21 | D178: 0.125 | F178: 0.039098 | G178: 32.651 | H178: 108.16 | I178: 19.818 | J178: 27.091 | K178: 7 | L178: 3 | M178: 1 | O178: 4.28323114 | EH178: 0.1270466926 | EI178: 0.1928358209 | EJ178: 0.777942623
A179: 170 | B179: 0 | C179: 21 | D179: 0.25 | F179: 0.032764 | G179: 33.706 | H179: 110.24 | I179: 17.733 | J179: 24.667 | K179: 7 | L179: 3 | M179: 1 | O179: 3.363807515 | EH179: 0.131151751 | EI179: 0.1773134328 | EJ179: 0.7978114754
A180: 171 | B180: 0 | C180: 21 | D180: 0.375 | F180: 0.041592 | G180: 26.971 | H180: 108.62 | I180: 14.9 | J180: 20.6 | K180: 7 | L180: 3 | M180: 1 | O180: 8.032752579 | EH180: 0.1049455253 | EI180: 0.1894029851 | EJ180: 0.831147541
A181: 172 | B181: 0 | C181: 21 | D181: 0.5 | F181: 0.037535 | G181: 26.971 | H181: 108.62 | I181: 13.5 | J181: 18 | K181: 7 | L181: 3 | M181: 1 | O181: 2.6 | EH181: 0.1049455253 | EI181: 0.1894029851 | EJ181: 0.8524590164
A182: 173 | B182: 0 | C182: 21 | D182: 0.625 | F182: 0.038143 | G182: 25.718 | H182: 109.64 | I182: 12.273 | J182: 18.636 | K182: 7 | L182: 3 | M182: 1 | O182: 1.736348179 | EH182: 0.1000700389 | EI182: 0.1817910448 | EJ182: 0.8472459016
A183: 174 | B183: 0 | C183: 21 | D183: 0.75 | F183: 0.041513 | G183: 23.423 | H183: 111.88 | I183: 10.273 | J183: 18.636 | K183: 7 | L183: 3 | M183: 1 | O183: 3.206965076 | EH183: 0.09114007782 | EI183: 0.1650746269 | EJ183: 0.8472459016
A184: 175 | B184: 0 | C184: 21 | D184: 0.875 | F184: 0.040154 | G184: 23.423 | H184: 111.88 | I184: 12.167 | J184: 13.583 | K184: 7 | L184: 3 | M184: 1 | O184: 5.053 | EH184: 0.09114007782 | EI184: 0.1650746269 | EJ184: 0.8886639344
A185: 176 | B185: 0 | C185: 22 | D185: 0 | F185: 0.034505 | G185: 22.771 | H185: 111.94 | I185: 11.067 | J185: 12.333 | K185: 7 | L185: 3 | M185: 1 | O185: 1.41110028 | EH185: 0.08860311284 | EI185: 0.1646268657 | EJ185: 0.8989098361
A186: 177 | B186: 0 | C186: 22 | D186: 0.125 | F186: 0.037852 | G186: 26.74 | H186: 106.84 | I186: 14.875 | J186: 10.375 | K186: 7 | L186: 3 | M186: 1 | O186: 6.752534709 | EH186: 0.1040466926 | EI186: 0.2026865672 | EJ186: 0.9149590164
A187: 178 | B187: 0 | C187: 22 | D187: 0.25 | F187: 0.037475 | G187: 26.74 | H187: 106.84 | I187: 18.765 | J187: 8.7059 | K187: 7 | L187: 3 | M187: 1 | O187: 1.6691 | EH187: 0.1040466926 | EI187: 0.2026865672 | EJ187: 0.9286401639
A188: 179 | B188: 0 | C188: 22 | D188: 0.375 | F188: 0.036769 | G188: 31.807 | H188: 105.04 | I188: 24.4 | J188: 7.1333 | K188: 7 | L188: 3 | M188: 1 | O188: 5.602460152 | EH188: 0.1237626459 | EI188: 0.216119403 | EJ188: 0.9415303279
A189: 180 | B189: 0 | C189: 22 | D189: 0.5 | F189: 0.039223 | G189: 41.807 | H189: 101.75 | I189: 28.455 | J189: 6.1818 | K189: 7 | L189: 3 | M189: 1 | O189: 10.57021534 | EH189: 0.1626731518 | EI189: 0.2406716418 | EJ189: 0.9493295082
A190: 181 | B190: 0 | C190: 22 | D190: 0.625 | F190: 0.04095 | G190: 49.219 | H190: 101.09 | I190: 33.3 | J190: 7.8 | K190: 7 | L190: 3 | M190: 1 | O190: 7.615242297 | EH190: 0.1915136187 | EI190: 0.2455970149 | EJ190: 0.9360655738
A191: 182 | B191: 0 | C191: 22 | D191: 0.75 | F191: 0.035681 | G191: 49.219 | H191: 101.09 | I191: 37.417 | J191: 8.6667 | K191: 7 | L191: 3 | M191: 1 | O191: 0.8667 | EH191: 0.1915136187 | EI191: 0.2455970149 | EJ191: 0.9289614754
A192: 183 | B192: 0 | C192: 22 | D192: 0.875 | F192: 0.042782 | G192: 55.631 | H192: 102.29 | I192: 41.417 | J192: 8.6667 | K192: 7 | L192: 3 | M192: 1 | O192: 6.52332308 | EH192: 0.216463035 | EI192: 0.236641791 | EJ192: 0.9289614754
A193: 184 | B193: 0 | C193: 23 | D193: 0 | F193: 0.043852 | G193: 63.859 | H193: 104.34 | I193: 41.143 | J193: 9.5714 | K193: 7 | L193: 3 | M193: 1 | O193: 8.527658887 | EH193: 0.2484785992 | EI193: 0.2213432836 | EJ193: 0.9215459016
A194: 185 | B194: 0 | C194: 23 | D194: 0.125 | F194: 0.040954 | G194: 63.859 | H194: 104.34 | I194: 44.538 | J194: 10.615 | K194: 7 | L194: 3 | M194: 1 | O194: 1.0436 | EH194: 0.2484785992 | EI194: 0.2213432836 | EJ194: 0.9129918033
A195: 186 | B195: 0 | C195: 23 | D195: 0.25 | F195: 0.040625 | G195: 68.239 | H195: 107.25 | I195: 47.333 | J195: 11.667 | K195: 7 | L195: 3 | M195: 1 | O195: 5.362760856 | EH195: 0.2655214008 | EI195: 0.1996268657 | EJ195: 0.9043688525
A196: 187 | B196: 0 | C196: 23 | D196: 0.375 | F196: 0.042617 | G196: 71.253 | H196: 109.97 | I196: 50.833 | J196: 13.833 | K196: 7 | L196: 3 | M196: 1 | O196: 4.601538004 | EH196: 0.2772490272 | EI196: 0.1793283582 | EJ196: 0.8866147541
A197: 188 | B197: 0 | C197: 23 | D197: 0.5 | F197: 0.034576 | G197: 71.253 | H197: 109.97 | I197: 52.4 | J197: 14.2 | K197: 7 | L197: 3 | M197: 1 | O197: 0.367 | EH197: 0.2772490272 | EI197: 0.1793283582 | EJ197: 0.8836065574
A198: 189 | B198: 0 | C198: 23 | D198: 0.625 | F198: 0.03557 | G198: 74.955 | H198: 114.39 | I198: 54.4 | J198: 14.2 | K198: 7 | L198: 3 | M198: 1 | O198: 5.765518537 | EH198: 0.2916536965 | EI198: 0.1463432836 | EJ198: 0.8836065574
A199: 190 | B199: 0 | C199: 23 | D199: 0.75 | F199: 0.041385 | G199: 76.829 | H199: 117.72 | I199: 54.667 | J199: 14.889 | K199: 7 | L199: 3 | M199: 1 | O199: 3.882717734 | EH199: 0.2989455253 | EI199: 0.1214925373 | EJ199: 0.8779590164
A200: 191 | B200: 0 | C200: 23 | D200: 0.875 | F200: 0.036314 | G200: 81.075 | H200: 120.95 | I200: 55 | J200: 17.667 | K200: 7 | L200: 3 | M200: 1 | O200: 6.014873232 | EH200: 0.3154669261 | EI200: 0.0973880597 | EJ200: 0.8551885246
... 362 more rows

Sheet Inf
B5: C:\FishMon\video_data.data
F6: 2
C7: latest | F7: 60mins | G7: 30 mins | H7: 20 mins | I7: 10 mins | J7: 1 min
B8: Z | C8: DISTANCE | D8: < | E8: hypo | F8: =G8*$F$6 -> 100000 | G8: 50000 | H8: =G8/3*2 -> 33333.33333 | I8: =H8/2 -> 16666.66667 | J8: =I8/10 -> 1666.666667
D9: < | E9: low | F9: =G9*$F$6 -> 160000 | G9: 80000 | H9: =G9/3*2 -> 53333.33333 | I9: =H9/2 -> 26666.66667 | J9: =I9/10 -> 2666.666667
D10: < | E10: normal | F10: =G10*$F$6 -> 390000 | G10: 195000 | H10: =G10/3*2 -> 130000 | I10: =H10/2 -> 65000 | J10: 6500
D11: >= | E11: hyper | F11: =G11*$F$6 -> 390002 | G11: =G10+1 -> 195001 | H11: =H10+1 -> 130001 | I11: =I10+1 -> 65001 | J11: 6500.1
B13: Y | C13: UTIL | D13: < | E13: hypo
D14: < | E14: low
D15: < | E15: normal
D16: >= | E16: hyper
B18: X | C18: ACTIVITY | D18: < | E18: hypo | F18: 2 | G18: 2 | H18: 2 | I18: 2 | J18: 2
D19: < | E19: low | F19: 3 | G19: 3 | H19: 3 | I19: 3 | J19: 3
D20: < | E20: normal | F20: 4 | G20: 4 | H20: 4 | I20: 4 | J20: 4
D21: >= | E21: hyper | F21: 8.01 | G21: 8.01 | H21: 8.01 | I21: 8.01 | J21: 8.01
